{"text_format":"1","workbook":"xlsx","n_sheets":2,"sheets":["data analysis","Project Planner"],"not_rendered":{"charts":0,"images":0,"macros":1,"external_links":0,"defined_names":14,"comments":0,"pivot_tables":1},"unopened":[],"bounds":{"document_bytes":16777216,"sheet_cells":100000,"rows_first":2000,"rows_last":500,"rows_between":2000,"halvings":0,"cell_chars":16384,"cell_head_chars":4096},"cells_cut":0,"cells_raw":0,"read":"whole","date_system":"1900"}

{"sheet":"data analysis","index":0,"n_rows":222,"n_cols":11,"rows_kept":222,"cut":false,"hidden":false,"merged":[]}
[]
[]
[]
[]
[]
[]
[]
[]
[]
[]
[]
[]
[]
[]
[null,null,null,null,"Values"]
[null,"INITIATIVE","DESCRIPTION","ACTIVITY","Plan_Start","Plan_Duration","Plan_Completion","Actual_Start","Actual_Duration","Actual_Completed","Percent_Complete"]
[null,"(blank)","(blank)","(blank)",null,null,null,null,null,null,0]
[null," IMPLEMENTATION OF AIR/GROUND COMMUNICATION (HF/VHF voice data, CPDLC)","AFI Communication Strategy (Botswana)","Action Plans",2021,1,2021,2021,0,"Ongoing",0]
[null,null,null,"Approval/Publish",2022,1,2022,2022,0,"Ongoing",0]
[null,null,null,"Assessment and Analysis Phase (Current Environment)",2021,1,2021,2021,0,"Ongoing",2.1496130696474634E-3]
[null,null,null,"Consolidation & Finalisation",2022,1,2022,2022,0,"Ongoing",0]
[null,null,null,"Define Vision, Mission and Values",2021,1,2021,2021,0,"Ongoing",0]
[null,null,null,"Design Phase",2021,1,2021,2021,0,"Ongoing",0]
[null,null,null,"Goals, Objectives, Strategies and Expected Results",2021,1,2021,2021,0,"Ongoing",0]
[null,null,null,"Implement Phase",2021,1,2021,2021,0,"Ongoing",0]
[null,null,null,"Indicators",2021,1,2021,2021,0,"Ongoing",0]
[null,null,null,"Performance Measurement Phase",2021,1,2021,2021,0,"Ongoing",0]
[null,null,null,"PESTLE",2021,1,2021,2021,0,"Ongoing",0]
[null,null,null,"Preparatory Phase – Initiation meeting",2021,1,2021,2021,0,"Ongoing",1.289767841788478E-2]
[null,null,null,"Review",2022,1,2022,2022,0,"Ongoing",0]
[null,null,null,"Review and Modify Phase",2025,1,2026,2025,-1,"Ongoing",0]
[null,null,null,"SWOT",2021,1,2021,2021,0,"Ongoing",0]
[null,null,"AIR-GROUND IMPLEMENTATION STATUS","Assessment Template (South Africa)",2021,1,2021,2021,0,2021,4.2992261392949267E-2]
[null,null,null,"Assessment/Reporting on the operation of Air ground communication systems and operation",2018,2,2022,2020,-2,"Ongoing",2.1496130696474634E-3]
[null,null,null,"Detailed guidance provided to States not complying with the AFI AMS Plan",2018,2,2022,2021,-1,"Ongoing",0]
[null,null,null,"Implementation status report of HF &VHF stations (Voice & data Link)",2018,2,2022,2020,-2,"Ongoing",2.3215821152192607E-2]
[null,null,null,"Implementation/Operation status report of CPDLC Circuits",2018,2,2022,2020,-2,"Ongoing",2.3215821152192607E-2]
[null,null,null,"Implementation/sharing and Operation status report of Remote VHF/HF systems",2018,2,2022,2020,-2,"Ongoing",2.3215821152192607E-2]
[null,null,null,"List of States with VHF and CPDLC, implemented",2018,2,2022,2021,-1,"Ongoing",2.3215821152192607E-2]
[null,null,"COM 3 Project Costing Report (South Africa)","Draft COM3 Project Costing Report",2022,1,2022,2022,0,"Ongoing",0]
[null,null,null,"Final COM3 Project Costing Report",2022,1,2022,2022,0,"Ongoing",0]
[null,null,null,"Gather Requirements – Assessment Report",2021,1,2021,2021,0,"Ongoing",0]
[null,null,null,"Project Costing Template",2021,1,2021,2021,0,"Ongoing",4.2992261392949269E-3]
[null,null,"HFDL / VDL Requirement (Manual / Guidance) – South Africa","Approval/Publish",2022,1,2022,2021,-1,"Ongoing",0]
[null,null,null,"Consolidation & Finalisation",2022,1,2022,2021,-1,"Ongoing",0]
[null,null,null,"Framework",2021,1,2021,2021,0,2021,4.2992261392949267E-2]
[null,null,null,"HFDL CONOPS",2021,1,2021,2021,0,"Ongoing",3.8693035253654341E-2]
[null,null,null,"HFDL Manual (South Africa and Ghana)",2021,1,2021,2021,0,"Ongoing",3.0094582975064486E-2]
[null,null,null,"Project Initiation",2021,1,2021,2021,0,2021,4.2992261392949267E-2]
[null,null,null,"Review",2021,1,2021,2021,0,"Ongoing",0]
[null,null,null,"VDL CONOPS",2021,1,2021,2021,0,"Ongoing",0]
[null,null,null,"VDL Manual",2021,1,2021,2021,0,"Ongoing",0]
[null,null,"MEETINGS (Teleconferences, Workshops/Seminars, meetings)","IIM PTC Meeting","20212021","1,1","2021,2021","2021,2021","0,0","2021,2021",8.5984522785898534E-2]
[null,null,null,"IIM Sub-Group Meeting",2019,1,2019,2019,0,2019,4.2992261392949267E-2]
[null,null,null,"Kick-off meeting",2018,1,2018,2018,0,2018,4.2992261392949267E-2]
[null,null,null,"Project Close-out meeting",2022,1,2022,2021,-1,"Ongoing",0]
[null,null,null,"Project progress meeting","2018201820182020202120212021202120212022","1,1,1,1,1,1,1,1,1,1","2018,2018,2018,2021,2021,2021,2021,2021,2022,2020","2020,2021,2021,2021,2021,2021,2021,2018,2018,2018","0,0,0,0,0,0,0,0,0,-1","2018,2018,2018,2020,2021,2021,2021,Ongoing,Ongoing,Ongoing",0.30094582975064488]
[null,null,"PROJECT PLANNING DOCUMENTATION","Project link finalisation (All)",2018,1,2018,2018,0,2018,4.2992261392949267E-2]
[null,null,null,"Project Questionnaire (ASECNA)",2018,1,2018,2018,0,2018,4.2992261392949267E-2]
[null,null,null,"Project team coordinators and experts appointment finalisation",2018,1,2018,2018,0,2018,4.2992261392949267E-2]
[null,null,null,"Project Team Organization (South Africa)",2018,1,2018,2018,0,2018,4.2992261392949267E-2]
[null,null,null,"Project ToR and Description (Seychelles)",2018,1,2018,2018,0,2018,4.2992261392949267E-2]
[null,"AFI AIM/2:IMPLEMENTATION OF AERONAUTICAL INFORMATION EXCHANGE SYSTEMS (AIXM)","ANALYSE EUROCONTROL AIXM SPECIFICATIONS","Analyse Eurocontrol AIXM specifications",2018,1,2018,2022,4,"Ongoing",0]
[null,null,"CIRCULATION OF IAIP SURVEY TO STATES","Circulation of IAIP survey to States",2018,1,2018,2022,4,"Ongoing",0]
[null,null,"COLLECTION AND UPDATING","Collection and updating ",2018,1,2018,2022,4,"Ongoing",0]
[null,null,"COLLECTION OF EXPERIENCES IN AFI STATES WITH THE ELECTRONIC AIP","Collection of experiences in AFI States with the electronic AIP",2018,1,2018,2022,4,"Ongoing",0]
[null,null,"DEVELOP AIXM ACTION PLAN FOR THE STATES","Develop AIXM action plan for the States",2018,1,2018,2022,4,"Ongoing",0]
[null,null,"DEVELOP GUIDANCE MATERIAL","Develop guidance material",2018,1,2018,2022,4,"Ongoing",0]
[null,null,"ORGANISE AIXM SEMINAR","Organise AIXM seminar ",2016,1,2016,2022,6,"Ongoing",0]
[null,null,"PROJECT PLANNING DOCUMENTATION","Project Costing",2020,1,2021,2020,-1,"Ongoing",0]
[null,null,null,"Project link finalisation",2018,1,2018,2019,1,2020,0]
[null,null,null,"Project Questionnaire",2018,1,2018,2019,1,2020,0]
[null,null,null,"Project team coordinators and experts appointment finalisation",2018,1,2018,2019,1,2020,0]
[null,null,null,"Project Team Organization",2018,1,2018,2019,1,2020,0]
[null,null,null,"Project ToR and Description",2018,1,2018,2019,1,2020,0]
[null,null,"SURVEY OF THE PROVISION OF IAIP, USING A TABLE","Survey of the provision of IAIP, using a table",2018,1,2018,2022,4,"Ongoing",0]
[null,"ASSESSMENT AND DEVELOPMENT OF QMS APPLIED TO AIM","PROJECT PLANNING DOCUMENTATION","Project Costing",2020,1,2021,2020,-1,"Ongoing",0]
[null,null,null,"Project link finalisation",2018,1,2018,2019,1,2020,0]
[null,null,null,"Project Questionnaire",2018,1,2018,2019,1,2020,0]
[null,null,null,"Project team coordinators and experts appointment finalisation",2018,1,2018,2019,1,2020,0]
[null,null,null,"Project Team Organization",2018,1,2018,2019,1,2020,0]
[null,null,null,"Project ToR and Description",2018,1,2018,2019,1,2020,0]
[null,"ASSESSMENT OF AFI AERONAUTICAL CYBER SECURITY","ASSESSMENT OF CYBER RESILIENCE OF AIR NAVIGATION SERVICES IN AFRICA","Analyze AFI States and ANSPs feedbacks (through questionnaire)",2018,1,2020,2021,1,"Ongoing",0]
[null,null,null,"Develop Project baseline questionnairE",2019,1,2020,2021,1,"Ongoing",0]
[null,null,null,"Identify the main cyber threats (ENISA reports, Symantec, Aviation cyber incidents information",2018,1,2020,2021,1,"Ongoing",0]
[null,null,null,"List all systems and data used for Air Navigation Services in AFI Region (expert knowledge , APIRG reports,…",2019,1,2020,2021,1,"Ongoing",0]
[null,null,"CYBER FRAMEWORK","Analyze existing cybersecurity and cyber resilience frameworks (ISO 27000 series, NIST framework, ICAO thrust framework)",2018,1,2020,2021,1,"Ongoing",0]
[null,null,null,"Develop an AFI Cyber resilience framework for Air Navigation services",2018,1,2020,2021,1,"Ongoing",0]
[null,null,null,"Update the framework with the ICAO latest developments and list of references provided by IATA",2018,1,2020,2021,1,"Ongoing",0]
[null,null,"CYBER SAFETY AWARENESS","Organize in coordination with IIM Secretariat webinars/cyber events on cyber safety and resilience",2018,1,2020,2021,1,"Ongoing",0]
[null,null,null,"Organize online meeting with other IIM projects to discuss cyber issues",2018,1,2020,2021,1,"Ongoing",0]
[null,null,"PROJECT COORDINATION","Organize regular progress meeting",2018,1,2020,2021,1,"Ongoing",0]
[null,null,null,"Organize specific meetings for updating the framewor",2018,1,2020,2021,1,"Ongoing",0]
[null,null,null,"Report the progress status to IIM Secretariat",2018,1,2020,2021,1,"Ongoing",0]
[null,null,"PROJECT PLANNING DOCUMENTATION","Project Costing",2020,1,2021,2020,-1,"Ongoing",0]
[null,null,null,"Project link finalisation",2018,1,2018,2019,1,2020,0]
[null,null,null,"Project Questionnaire",2018,1,2018,2019,1,2020,0]
[null,null,null,"Project team coordinators and experts appointment finalisation",2018,1,2018,2019,1,2020,0]
[null,null,null,"Project Team Organization",2018,1,2018,2019,1,2020,0]
[null,null,null,"Project ToR and Description",2018,1,2018,2019,1,2020,0]
[null,"DEVELOPMENT OF POLICIES AND SYSTEMS FOR PROTECTION OF AERONAUTICAL FREQUENCY","CONDUCTED WORKSHOPS ON ICAO ANNEX 10 VOLUME 5 DOC 9718, AND ICAO FREQUENCY FINDER TOOL REQUIREMENTS AND PROCEDURES ON AERONAUTICAL FREQUENCY ALLOTMENT","Conducted workshops on ICAO Annex 10 volume 5 DOC 9718, and ICAO frequency finder tool requirements and procedures on Aeronautical frequency allotment",2021,1,2021,2021,0,"Ongoing",0]
[null,null,"MOU/ AGREEMENT TEMPLATE ON AERONAUTICAL FREQUENCY ASSIGNMENT COORDINATION BETWEEN CAAS AND FREQUENCY MANAGEMENT REGULATORS IN STATES","MOU/ agreement template on Aeronautical frequency assignment coordination between CAAs and frequency management regulators in States",2021,1,2021,2021,0,"Ongoing",0]
[null,null,"PLATFORM AND PROCESSES FOR REVIEW OF ITU AGENDA ITEMS IN PREPARATION FOR WRC MEETINGS","Platform and processes for review of ITU agenda items in preparation for WRC meetings",2021,1,2021,2021,0,"Ongoing",0]
[null,null,"PROCEDURES FOR COORDINATION OF FREQUENCY ASSIGNMENT WITH ICAO -FOR INCLUSION IN FREQUENCY FINDER TOOL","Procedures for coordination of frequency assignment with ICAO -for inclusion in frequency finder tool",2021,1,2021,2021,0,"Ongoing",0]
[null,null,"PROJECT PLANNING DOCUMENTATION","Project Costing",2020,1,2021,2020,-1,"Ongoing",0]
[null,null,null,"Project link finalisation",2018,1,2018,2019,1,2020,0]
[null,null,null,"Project Questionnaire",2018,1,2018,2019,1,2020,0]
[null,null,null,"Project team coordinators and experts appointment finalisation",2018,1,2018,2019,1,2020,0]
[null,null,null,"Project Team Organization",2018,1,2018,2019,1,2020,0]
[null,null,null,"Project ToR and Description",2018,1,2018,2019,1,2020,0]
[null,null,"PROJECT PROGRESS REPORTS","Project Progress reports",2021,1,2021,2021,0,"Ongoing",0]
[null,null,"REPORT ON STUDIES CARRIED OUT ON REQUIREMENT FOR AERONAUTICAL FREQUENCY BANDS AND THEIR GUARD BANDS NEEDED FOR SAFE UTILIZATION","Report on Studies carried out on requirement for Aeronautical frequency bands and their guard bands needed for safe utilization.",2021,1,2021,2021,0,"Ongoing",0]
[null,"IMPLEMENTATION OF CONVENTIONAL NAV'AIDS AND GNSS (Core and Augmented)","ASSESSMENT/MITIGATION OF GNSS VULNERABILITIES","Assessment/Mitigation of GNSS vulnerabilities",2018,1,2020,2020,0,"Ongoing",0]
[null,null,"ASSESSMENT/REPORTING ONTHE OPERATION OF AIR GROUND COMMUNICATION SYSTEMS AND OPERATION OF NAV’AIDS AND GNSS SYSTEM","Assessment/Reporting onthe operation of Air ground communication systems and operation of Nav’Aids and GNSS system",2018,1,2020,2020,0,"Ongoing",0]
[null,null,"DETAILED GUIDANCE PROVIDED TO STATES NOT COMPLYING WITH THE AFI NAVIGATION PLAN","Detailed guidance provided to States not complying with the AFI Navigation Plan",2018,1,2020,2020,0,"Ongoing",0]
[null,null,"IMPLEMENTATION OF AUGMENTED GNSS (ABAS/GBAS/SBAS)","Implementation of Augmented GNSS (ABAS/GBAS/SBAS)",2018,1,2020,2020,0,"Ongoing",0]
[null,null,"IMPLEMENTATION OF VOR/DMES/ILSS","Implementation of VOR/DMEs/ILSs",2018,1,2020,2020,0,"Ongoing",0]
[null,null,"LIST OF S TATES WITH CONVENTIONAL NAV’AIDS AND GNSS SYSTEMS , IMPLEMENTED","List of S tates with Conventional Nav’aids and GNSS systems , implemented",2018,1,2020,2020,0,"Ongoing",0]
[null,null,"OPERATION OF CONVENTIONAL NAV’AIDS AND GNSS SYSTEMS","Operation of conventional Nav’Aids and GNSS systems",2018,1,2020,2020,0,"Ongoing",0]
[null,null,"PROJECT PLANNING DOCUMENTATION","Project Costing",2020,1,2021,2020,-1,"Ongoing",0]
[null,null,null,"Project link finalisation",2018,1,2018,2019,1,2020,0]
[null,null,null,"Project Questionnaire",2018,1,2018,2019,1,2020,0]
[null,null,null,"Project team coordinators and experts appointment finalisation",2018,1,2018,2019,1,2020,0]
[null,null,null,"Project Team Organization",2018,1,2018,2019,1,2020,0]
[null,null,null,"Project ToR and Description",2018,1,2018,2019,1,2020,0]
[null,null,"TELECONFERENCES, WORKSHOPS/SEMINARS, MEETINGS (FRENCH AND ENGLISH) ON NAV’AIDSAND GNSSS SYSTEMS OPERATION AND THEIR IMPLEMENTATION SCHEME","Teleconferences, Workshops/Seminars, meetings (French and English) on Nav’aidsand GNSSS systems operation and their implementation scheme",2018,1,2020,2020,0,"Ongoing",0]
[null,"IMPLEMENTATION OF GROUND/GROUND COMMUNICATION (AFTN, AMHS)","ASSESSMENT/REPORTING ON THE OPERATION OF AMHS SYSTEMS AND OPERATION","Assessment/Reporting on the operation of AMHS systems and operation",2020,1,2021,2021,0,"Ongoing",0]
[null,null,"DETAILED GUIDANCE PROVIDED TO STATES NOT COMPLYING WITH THE AFI AERONAUTICAL FIXED SERVICE (AFS) PLAN","Detailed guidance provided to States not complying with the AFI Aeronautical Fixed Service (AFS) Plan",2020,1,2021,2021,0,"Ongoing",0]
[null,null,"IMPLEMENTATION/ACTIVATION OF AFTN CIRCUITS","Implementation/Activation of AFTN Circuits",2020,1,2021,2021,0,"Ongoing",0]
[null,null,"IMPLEMENTATION/INTERCONNECTION AND OPERATION OF AMHS SYSTEMS","Implementation/interconnection and operation of AMHS systems",2020,1,2021,2021,0,"Ongoing",0]
[null,null,"LIST OF STATES WITH AFTN AND AMHS, IMPLEMENTED","List of States with AFTN and AMHS, implemented",2020,1,2021,2021,0,"Ongoing",0]
[null,null,"PROJECT PLANNING DOCUMENTATION","Project Costing",2018,1,2018,2019,1,2020,0]
[null,null,null,"Project link finalisation",2018,1,2018,2019,1,2020,0]
[null,null,null,"Project Questionnaire",2018,1,2018,2019,1,2020,0]
[null,null,null,"Project Team Organization",2018,1,2018,2019,1,2020,0]
[null,null,null,"Project ToR and Description",2018,1,2018,2019,1,2020,0]
[null,null,null,"Restauration/Improvement of the availability of AFTN Failing circuits",2020,1,2021,2020,-1,"Ongoing",0]
[null,null,"TELECONFERENCES, WORKSHOPS/SEMINARS, MEETINGS (FRENCH AND ENGLISH) ON AMHS SYSTEMS OPERATION AND THEIR IMPLEMENTATION SCHEME","Teleconferences, Workshops/Seminars, meetings (French and English) on AMHS systems operation and their implementation scheme",2020,1,2021,2021,0,"Ongoing",0]
[null,"IMPLEMENTATION OF GROUND/GROUND COMMUNICATIONS (ATS/DS, AIDC, VoIP)","AIR TRAFFIC SERVICE DIRECT SPEECH (ATS/DS)","Implementation/Activation of ATS/DS Circuits",2018,1,2019,2020,1,"Ongoing",0]
[null,null,null,"Restauration/Improvement of the availability of ATS/DS Failing circuits",2018,1,2019,2020,1,"Ongoing",0]
[null,null,"AIR TRAFFIC SERVICE INTERFACILITIES DATA COMMUNICATION (AIDC)","Assessment/Reporting onthe operation of AIDC systemsand operation",2018,1,2019,2020,1,"Ongoing",0]
[null,null,null,"Implementation/interconnectionand operationof AIDC systems",2018,1,2019,2020,1,"Ongoing",0]
[null,null,null,"Teleconferences, Workshops/Seminars,meetings(French andEnglish)onAIDC systems operationand their implementation scheme",2018,1,2019,2020,1,"Ongoing",0]
[null,null,"PROJECT PLANNING DOCUMENTATION","Project Costing",2020,1,2021,2020,-1,"Ongoing",0]
[null,null,null,"Project link finalisation",2018,1,2018,2019,1,2020,0]
[null,null,null,"Project Questionnaire",2018,1,2018,2019,1,2020,0]
[null,null,null,"Project team coordinators and experts appointment finalisation",2018,1,2018,2019,1,2020,0]
[null,null,null,"Project Team Organization",2018,1,2018,2019,1,2020,0]
[null,null,null,"Project ToR and Description",2018,1,2018,2019,1,2020,0]
[null,null,"VOICE OVER INTERNET PROTOCOL (VOIP)","Assessment/Reporting onthe operation of VoIPsystemsand operation",2018,1,2019,2020,1,"Ongoing",0]
[null,null,null,"DetailedguidanceprovidedtoStatesnotcomplying with the AFI AFS Plan",2018,1,2019,2020,1,"Ongoing",0]
[null,null,null,"Implementation/interconnection and operation of VoIP systems",2018,1,2019,2020,1,"Ongoing",0]
[null,null,null,"ListofStateswith ATS/DS, AIDC and VoIP,implemented",2018,1,2019,2020,1,"Ongoing",0]
[null,null,null,"Teleconferences, Workshops/Seminars,meetings(French andEnglish)onVoIP systems operationand their implementation scheme",2018,1,2019,2020,1,"Ongoing",0]
[null,"IMPLEMENTATION OF INTEROPERABLE SEAMLESS TELECOMMUNICATION INFRASTRUCTURE","ASSESSMENT OF THE CURRENT AFI VSAT NETWORKS WITH REGARD TO REGARD TO THE ATM REQUIREMENTS","Assessment of AFI VSAT networks interconnection/interoperability with regard to the ATM requirements",2018,1,2021,2020,-1,"Ongoing",0]
[null,null,null,"Assessment of the current AFI VSAT networks with regard to regard to the ATM requirements",2018,1,2021,2020,-1,"Ongoing",0]
[null,null,"BACKGROUND, ASSESSMENT AND UPDATE OF AFI ATN BACKBONE ARCHITECTURE","Background, assessment and update of AFI ATN backbone architecture",2018,1,2021,2020,-1,"Ongoing",0]
[null,null,"MONITORING OF THE AFI INTEGRATED REGIONAL TELECOMMUNICATION INFRASTRUCTURE IMPLEMENTATION","Monitoring of the AFI Integrated Regional Telecommunication Infrastructure implementation",2018,1,2021,2020,-1,"Ongoing",0]
[null,null,null,"Study of the AFI Integrated Regional Telecommunication Infrastructure including:\nIP backbone architecture \nIP address scheme definition\nAssessment of the bandwidth",2018,1,2021,2020,-1,"Ongoing",0]
[null,null,"PROJECT PLANNING DOCUMENTATION","Project Costing",2020,1,2021,2020,-1,"Ongoing",0]
[null,null,null,"Project link finalisation",2018,1,2018,2019,1,2020,0]
[null,null,null,"Project Questionnaire",2018,1,2018,2019,1,2020,0]
[null,null,null,"Project team coordinators and experts appointment finalisation",2018,1,2018,2019,1,2020,0]
[null,null,null,"Project Team Organization",2018,1,2018,2019,1,2020,0]
[null,null,null,"Project ToR and Description",2018,1,2018,2019,1,2020,0]
[null,"IMPLEMENTATION OF SURVEILLANCE SYSTEMS","PROJECT PLANNING DOCUMENTATION","Project Costing",2020,1,2021,2020,-1,"Ongoing",0]
[null,null,null,"Project link finalisation",2018,1,2018,2019,1,2020,0]
[null,null,null,"Project Questionnaire",2018,1,2018,2019,1,2020,0]
[null,null,null,"Project team coordinators and experts appointment finalisation",2018,1,2018,2019,1,2020,0]
[null,null,null,"Project Team Organization",2018,1,2018,2019,1,2020,0]
[null,null,null,"Project ToR and Description",2018,1,2018,2019,1,2020,0]
[null,"IMPLEMENTATION OF THE PROVISION OF ELECTRONIC TERRAIN AND OBSTACLE DATA (e-TOD) (AFI Region)","PROJECT PLANNING DOCUMENTATION","Project Costing",2020,1,2021,2020,-1,"Ongoing",0]
[null,null,null,"Project link finalisation",2018,1,2018,2019,1,2020,0]
[null,null,null,"Project Questionnaire",2018,1,2018,2019,1,2020,0]
[null,null,null,"Project team coordinators and experts appointment finalisation",2018,1,2018,2019,1,2020,0]
[null,null,null,"Project Team Organization",2018,1,2018,2019,1,2020,0]
[null,null,null,"Project ToR and Description",2018,1,2018,2019,1,2020,0]
[null,"SIGMET/QMS/Deficiencies/D-OPMET","DEFICIENCES","An action plan to assist concerned States to remove long lasting MET deficiencies, established",2020,1,2021,2020,-1,"Ongoing",0]
[null,null,null,"Current air navigation deficiencies in the MET field, assessed and confirmed",2020,1,2021,2020,-1,"Ongoing",0]
[null,null,null,"Workshops to assist States concerned to address deficiencies related to the implementation of the AMBEX scheme and for the provision of further advice and awareness, issued and distributed",2020,1,2021,2020,-1,"Ongoing",0]
[null,null,"DIGITAL OPMET","AFI States implemented digital OPMET in BCC and NOCs in accordance with Amendment 79 to ICAO Annex 3",2020,1,2021,2020,-1,"Ongoing",0]
[null,null,"PROJECT PLANNING DOCUMENTATION","Project Costing",2020,1,2021,2020,-1,"Ongoing",0]
[null,null,null,"Project link finalisation",2018,1,2018,2019,1,2020,0]
[null,null,null,"Project Questionnaire",2018,1,2018,2019,1,2020,0]
[null,null,null,"Project team coordinators and experts appointment finalisation",2018,1,2018,2019,1,2020,0]
[null,null,null,"Project Team Organization",2018,1,2018,2019,1,2020,0]
[null,null,null,"Project ToR and Description",2018,1,2018,2019,1,2020,0]
[null,null,"QMS","An updated list of States not implementing or partially implementing QMS established.",2020,1,2021,2020,-1,"Ongoing",0]
[null,null,null,"Report distributed ",2020,1,2021,2020,-1,"Ongoing",0]
[null,null,null,"Training of MET   personnel in States that have not implemented QMS, performed, and training workshop",2020,1,2021,2020,-1,"Ongoing",0]
[null,null,null,"Training on cost recovery mechanism for MET performed; training workshop report encouraging Sates to institute cost recovery mechanism, distributed.",2020,1,2021,2020,-1,"Ongoing",0]
[null,null,"SIGMET","An updated list of States not compliant with SIGMET format, established",2020,1,2021,2020,-1,"Ongoing",0]
[null,null,null,"Current level of implementation of SIGMET assessed through annual SIGMET trials",2020,1,2021,2020,-1,"Ongoing",0]
[null,null,null,"Details guidance to States not issuing SIGMET, distributed",2020,1,2021,2020,-1,"Ongoing",0]
[null,null,null,"Updated AFI regional SIGMET Guide distributed and placed on ICAO website",2020,1,2021,2020,-1,"Ongoing",0]
[null,"SPACE WEATHER PROJECT","AN ACTION PLAN TO ASSIST CONCERNED\nSTATES TO UNDERSTAND AND INTERPRET SWX INFORMATION ESTABLISHED","An action plan to assist concerned\nStates to understand and interpret SWx information established.",2020,1,2021,2021,0,"Ongoing",0]
[null,null,"AN UPDATED LIST OF STATES THAT HAVE AWARENESS AND CAPABILITY FOR INGESTING THE SWX ADVISORY FORMAT INTO THEIR SYSTEMS ESTABLISHED","An updated list of States that have awareness and capability for ingesting the SWx advisory format into their systems established.",2020,1,2021,2021,0,"Ongoing",0]
[null,null,"CURRENT LEVEL OF IMPLEMENTATION OF\nSWX ADVISORY ASSESSED THROUGH ANNUAL\nSIGMET TRIALS","Current level of implementation of\nSWx advisory assessed through annual\nSIGMET trials",2020,1,2021,2021,0,"Ongoing",0]
[null,null,"DETAILED GUIDANCE TO STATES NOT CURRENTLY IMPLEMENTING ANNEX 3 WITH REGARDS TO SPACE WEATHER INFORMATION","Detailed guidance to States not currently implementing Annex 3 with regards to space weather information;",2020,1,2021,2021,0,"Ongoing",0]
[null,null,"DEVELOP A DRAFT AFI CONCEPT OF OPERATIONS FOR THE DISSEMINATION OF SPACE WEATHER INFORMATION WITHIN THE AFRICAN CONTINENT","Develop a draft AFI Concept of Operations for the dissemination of space weather information within the African continent",2020,1,2021,2021,0,"Ongoing",0]
[null,null,"PROJECT PLANNING DOCUMENTATION","Project Costing",2020,1,2021,2020,-1,"Ongoing",0]
[null,null,null,"Project link finalisation",2018,1,2018,2019,1,2020,0]
[null,null,null,"Project Questionnaire",2018,1,2018,2019,1,2020,0]
[null,null,null,"Project team coordinators and experts appointment finalisation",2018,1,2018,2019,1,2020,0]
[null,null,null,"Project Team Organization",2018,1,2018,2019,1,2020,0]
[null,null,null,"Project ToR and Description",2018,1,2018,2019,1,2020,0]
[null,null,"WORKSHOPS AND INFORMATION AWARENESS SESSIONS TO ASSIST STATES CONCERNED TO ADDRESS DEFICIENCIES\nRELATED TO THE IMPLEMENTATION OF THE\nSWX INFORMATION AND FOR THE PROVISION OF FURTHER ADVICE AND AWARENESS","Workshops and information awareness sessions to assist States concerned to address deficiencies\nrelated to the implementation of the\nSWx information and for the provision of further advice and awareness.",2020,1,2021,2021,0,"Ongoing",0]
[null,"TA-WRNGS/WAFS/AMBEX","AMBEX"," Remedial action plans developed for the concerned States",2020,1,2020,2020,0,"Ongoing",0]
[null,null,null,"A report on quarterly assessment of the availability and quality of OPMET data in the region, issued,",2020,1,2020,2020,0,"Ongoing",0]
[null,null,null,"Seminar on the implementation of AMBEX procedures including RODBs, conducted",2020,1,2020,2020,0,"Ongoing",0]
[null,null,"PROJECT PLANNING DOCUMENTATION","Project Costing",2020,1,2021,2020,-1,"Ongoing",0]
[null,null,null,"Project link finalisation",2018,1,2018,2019,1,2020,0]
[null,null,null,"Project Questionnaire",2018,1,2018,2019,1,2020,0]
[null,null,null,"Project team coordinators and experts appointment finalisation",2018,1,2018,2019,1,2020,0]
[null,null,null,"Project Team Organization",2018,1,2018,2019,1,2020,0]
[null,null,null,"Project ToR and Description",2018,1,2018,2019,1,2020,0]
[null,null,"TERMINAL AREA WARNINGS (AD WRNG & WS WRNG(WHERE APPLICABLE))","Detailed guidance provided to States not issuing terminal area warnings and forecasts",2020,1,2020,2020,0,"Ongoing",0]
[null,null,null,"List of States implementing aerodrome warnings, wind shear warnings/alerts, distributed",2020,1,2020,2020,0,"Ongoing",0]
[null,null,null,"Report on Mission to States not compliant with terminal area warning facilities as stipulated in Annex 3 and the AFI eANP , distributed ",2020,1,2020,2020,0,"Ongoing",0]
[null,null,"WAFS and IAVW"," Remedial action plans developed for the concerned States",2020,1,2020,2020,0,"Ongoing",0]
[null,null,null,"AFI volcanic ash contingency plan (AFI VACP) exercises conducted",2020,1,2020,2020,0,"Ongoing",0]
[null,null,null,"An updated list of States with active volcanos not implementing IAVW (volcano observatories and VONA), established",2020,1,2020,2020,0,"Ongoing",0]

{"sheet":"Project Planner","index":1,"n_rows":219,"n_cols":74,"rows_kept":219,"cut":false,"hidden":false,"merged":[[0,1,0,24],[2,4,3,4],[2,1,3,1],[2,2,3,2],[2,14,2,23],[2,13,3,13],[2,11,3,11],[2,8,3,8],[2,3,3,3],[1,41,1,48],[1,5,1,10],[2,5,3,5],[2,6,3,6],[2,7,3,7],[2,9,3,9],[2,10,3,10],[2,12,3,12],[1,17,1,21],[1,23,1,26],[1,28,1,31],[1,33,1,39]]}
[null,"IIM SG PROJECT MASTERPLAN"]
[null,null,null,null,null,"Select a period to highlight at right.  A legend describing the charting follows.",null,null,null,null,null,null," Period Highlight:",null,1,null,null,"Plan Duration",null,null,null,null,null,"Actual Start",null,null,null,null,"% Complete",null,null,null,null,"Actual (beyond plan)",null,null,null,null,null,null,null,"% Complete (beyond plan)"]
[null,"PROJECT NAME","NO","INITIATIVE","DESCRIPTION","ACTIVITY","PLAN START","PLAN DURATION","PLAN COMPLETION","ACTUAL START","ACTUAL DURATION","ACTUAL COMPLETED","PERCENT COMPLETE","PROGRESS NOTE","PERIODS"]
[null,null,null,null,null,null,null,null,null,null,null,null,null,null,2017,2018,2019,2020,2021,2022,2023,8,9,10,11,12,13,14,15,16,17,18,19,20,21,22,23,24,25,26,27,28,29,30,31,32,33,34,35,36,37,38,39,40,41,42,43,44,45,46,47,48,49,50,51,52,53,54,55,56,57,58,59,60]
[null,"COM 1","1.1.1","IMPLEMENTATION OF GROUND/GROUND COMMUNICATIONS (ATS/DS, AIDC, VoIP)","PROJECT PLANNING DOCUMENTATION","Project team coordinators and experts appointment finalisation",2018,1,2018,2019,{"$f":"IMSUB(J5,I5)","v":"1"},2020,0]
[null,"COM 1","1.1.2","IMPLEMENTATION OF GROUND/GROUND COMMUNICATIONS (ATS/DS, AIDC, VoIP)","PROJECT PLANNING DOCUMENTATION","Project Team Organization",2018,1,2018,2019,"1",2020,0]
[null,"COM 1","1.1.3","IMPLEMENTATION OF GROUND/GROUND COMMUNICATIONS (ATS/DS, AIDC, VoIP)","PROJECT PLANNING DOCUMENTATION","Project ToR and Description ",2018,1,2018,2019,"1",2020,0]
[null,"COM 1","1.1.4","IMPLEMENTATION OF GROUND/GROUND COMMUNICATIONS (ATS/DS, AIDC, VoIP)","PROJECT PLANNING DOCUMENTATION","Project link finalisation ",2018,1,2018,2019,"1",2020,0]
[null,"COM 1","1.1.5","IMPLEMENTATION OF GROUND/GROUND COMMUNICATIONS (ATS/DS, AIDC, VoIP)","PROJECT PLANNING DOCUMENTATION","Project Questionnaire ",2018,1,2018,2019,"1",2020,0]
[null,"COM 1","1.1.6","IMPLEMENTATION OF GROUND/GROUND COMMUNICATIONS (ATS/DS, AIDC, VoIP)","PROJECT PLANNING DOCUMENTATION","Project Costing",2020,1,2021,2020,"-1","Ongoing ",0]
[null,"COM 1","1.2.1","IMPLEMENTATION OF GROUND/GROUND COMMUNICATIONS (ATS/DS, AIDC, VoIP)",{"$f":"UPPER(\"Air Traffic Service Direct Speech (ATS/DS)\")","v":"AIR TRAFFIC SERVICE DIRECT SPEECH (ATS/DS)"},"Implementation/Activation of ATS/DS Circuits",2018,1,2019,2020,"1","Ongoing ",0]
[null,"COM 1","1.2.2","IMPLEMENTATION OF GROUND/GROUND COMMUNICATIONS (ATS/DS, AIDC, VoIP)",{"$f":"UPPER(\"Air Traffic Service Direct Speech (ATS/DS)\")","v":"AIR TRAFFIC SERVICE DIRECT SPEECH (ATS/DS)"},"Restauration/Improvement of the availability of ATS/DS Failing circuits",2018,1,2019,2020,"1","Ongoing ",0]
[null,"COM 1","1.3.1","IMPLEMENTATION OF GROUND/GROUND COMMUNICATIONS (ATS/DS, AIDC, VoIP)",{"$f":"UPPER(\"Air Traffic Service Interfacilities Data communication (AIDC)\")","v":"AIR TRAFFIC SERVICE INTERFACILITIES DATA COMMUNICATION (AIDC)"},"Teleconferences, Workshops/Seminars,meetings(French andEnglish)onAIDC systems operationand their implementation scheme ",2018,1,2019,2020,"1","Ongoing ",0]
[null,"COM 1","1.3.2","IMPLEMENTATION OF GROUND/GROUND COMMUNICATIONS (ATS/DS, AIDC, VoIP)","AIR TRAFFIC SERVICE INTERFACILITIES DATA COMMUNICATION (AIDC)","Implementation/interconnectionand operationof AIDC systems ",2018,1,2019,2020,"1","Ongoing ",0]
[null,"COM 1","1.3.3","IMPLEMENTATION OF GROUND/GROUND COMMUNICATIONS (ATS/DS, AIDC, VoIP)","AIR TRAFFIC SERVICE INTERFACILITIES DATA COMMUNICATION (AIDC)","Assessment/Reporting onthe operation of AIDC systemsand operation",2018,1,2019,2020,"1","Ongoing ",0]
[null,"COM 1","1.4.1","IMPLEMENTATION OF GROUND/GROUND COMMUNICATIONS (ATS/DS, AIDC, VoIP)",{"$f":"UPPER(\"Voice over Internet protocol (VoIP)\")","v":"VOICE OVER INTERNET PROTOCOL (VOIP)"},"Teleconferences, Workshops/Seminars,meetings(French andEnglish)onVoIP systems operationand their implementation scheme",2018,1,2019,2020,"1","Ongoing ",0]
[null,"COM 1","1.4.2","IMPLEMENTATION OF GROUND/GROUND COMMUNICATIONS (ATS/DS, AIDC, VoIP)","VOICE OVER INTERNET PROTOCOL (VOIP)","Implementation/interconnection and operation of VoIP systems",2018,1,2019,2020,"1","Ongoing ",0]
[null,"COM 1","1.4.3","IMPLEMENTATION OF GROUND/GROUND COMMUNICATIONS (ATS/DS, AIDC, VoIP)","VOICE OVER INTERNET PROTOCOL (VOIP)","Assessment/Reporting onthe operation of VoIPsystemsand operation",2018,1,2019,2020,"1","Ongoing ",0]
[null,"COM 1","1.4.4","IMPLEMENTATION OF GROUND/GROUND COMMUNICATIONS (ATS/DS, AIDC, VoIP)","VOICE OVER INTERNET PROTOCOL (VOIP)","DetailedguidanceprovidedtoStatesnotcomplying with the AFI AFS Plan",2018,1,2019,2020,"1","Ongoing ",0]
[null,"COM 1","1.4.5","IMPLEMENTATION OF GROUND/GROUND COMMUNICATIONS (ATS/DS, AIDC, VoIP)","VOICE OVER INTERNET PROTOCOL (VOIP)","ListofStateswith ATS/DS, AIDC and VoIP,implemented",2018,1,2019,2020,"1","Ongoing ",0]
[null,"COM 2","2.1.1","IMPLEMENTATION OF GROUND/GROUND COMMUNICATION (AFTN, AMHS)","PROJECT PLANNING DOCUMENTATION","Project Team Organization",2018,1,2018,2019,"1",2020,0]
[null,"COM 2","2.1.2","IMPLEMENTATION OF GROUND/GROUND COMMUNICATION (AFTN, AMHS)","PROJECT PLANNING DOCUMENTATION","Project ToR and Description ",2018,1,2018,2019,"1",2020,0]
[null,"COM 2","2.1.3","IMPLEMENTATION OF GROUND/GROUND COMMUNICATION (AFTN, AMHS)","PROJECT PLANNING DOCUMENTATION","Project link finalisation ",2018,1,2018,2019,"1",2020,0]
[null,"COM 2","2.1.4","IMPLEMENTATION OF GROUND/GROUND COMMUNICATION (AFTN, AMHS)","PROJECT PLANNING DOCUMENTATION","Project Questionnaire ",2018,1,2018,2019,"1",2020,0]
[null,"COM 2","2.1.5","IMPLEMENTATION OF GROUND/GROUND COMMUNICATION (AFTN, AMHS)","PROJECT PLANNING DOCUMENTATION","Project Costing",2018,1,2018,2019,"1",2020,0]
[null,"COM 2","2.1.6","IMPLEMENTATION OF GROUND/GROUND COMMUNICATION (AFTN, AMHS)","PROJECT PLANNING DOCUMENTATION","Restauration/Improvement of the availability of AFTN Failing circuits",2020,1,2021,2020,"-1","Ongoing ",0]
[null,"COM 2","2.2","IMPLEMENTATION OF GROUND/GROUND COMMUNICATION (AFTN, AMHS)",{"$f":"UPPER(\"Implementation/Activation of AFTN Circuits\")","v":"IMPLEMENTATION/ACTIVATION OF AFTN CIRCUITS"},"Implementation/Activation of AFTN Circuits",2020,1,2021,2021,"0","Ongoing ",0]
[null,"COM 2","2.3","IMPLEMENTATION OF GROUND/GROUND COMMUNICATION (AFTN, AMHS)",{"$f":"UPPER(\"Teleconferences, Workshops/Seminars, meetings (French and English) on AMHS systems operation and their implementation scheme\")","v":"TELECONFERENCES, WORKSHOPS/SEMINARS, MEETINGS (FRENCH AND ENGLISH) ON AMHS SYSTEMS OPERATION AND THEIR IMPLEMENTATION SCHEME"},"Teleconferences, Workshops/Seminars, meetings (French and English) on AMHS systems operation and their implementation scheme",2020,1,2021,2021,"0","Ongoing ",0]
[null,"COM 2","2.4","IMPLEMENTATION OF GROUND/GROUND COMMUNICATION (AFTN, AMHS)",{"$f":"UPPER(\"Implementation/interconnection and operation of AMHS systems\")","v":"IMPLEMENTATION/INTERCONNECTION AND OPERATION OF AMHS SYSTEMS"},"Implementation/interconnection and operation of AMHS systems",2020,1,2021,2021,"0","Ongoing ",0]
[null,"COM 2","2.5","IMPLEMENTATION OF GROUND/GROUND COMMUNICATION (AFTN, AMHS)",{"$f":"UPPER(\"Assessment/Reporting on the operation of AMHS systems and operation\")","v":"ASSESSMENT/REPORTING ON THE OPERATION OF AMHS SYSTEMS AND OPERATION"},"Assessment/Reporting on the operation of AMHS systems and operation",2020,1,2021,2021,"0","Ongoing ",0]
[null,"COM 2","2.6","IMPLEMENTATION OF GROUND/GROUND COMMUNICATION (AFTN, AMHS)",{"$f":"UPPER(\"Detailed guidance provided to States not complying with the AFI Aeronautical Fixed Service (AFS) Plan\")","v":"DETAILED GUIDANCE PROVIDED TO STATES NOT COMPLYING WITH THE AFI AERONAUTICAL FIXED SERVICE (AFS) PLAN"},"Detailed guidance provided to States not complying with the AFI Aeronautical Fixed Service (AFS) Plan",2020,1,2021,2021,"0","Ongoing ",0]
[null,"COM 2","2.7","IMPLEMENTATION OF GROUND/GROUND COMMUNICATION (AFTN, AMHS)",{"$f":"UPPER(\"List of States with AFTN and AMHS, implemented\")","v":"LIST OF STATES WITH AFTN AND AMHS, IMPLEMENTED"},"List of States with AFTN and AMHS, implemented",2020,1,2021,2021,"0","Ongoing ",0]
[null,"COM3","3.1.1"," IMPLEMENTATION OF AIR/GROUND COMMUNICATION (HF/VHF voice data, CPDLC)","PROJECT PLANNING DOCUMENTATION","Project team coordinators and experts appointment finalisation",2018,1,2018,2018,"0",2018,1]
[null,"COM3","3.1.2"," IMPLEMENTATION OF AIR/GROUND COMMUNICATION (HF/VHF voice data, CPDLC)","PROJECT PLANNING DOCUMENTATION","Project Team Organization (South Africa)",2018,1,2018,2018,"0",2018,1]
[null,"COM3","3.1.3"," IMPLEMENTATION OF AIR/GROUND COMMUNICATION (HF/VHF voice data, CPDLC)","PROJECT PLANNING DOCUMENTATION","Project ToR and Description (Seychelles)",2018,1,2018,2018,"0",2018,1]
[null,"COM3","3.1.4"," IMPLEMENTATION OF AIR/GROUND COMMUNICATION (HF/VHF voice data, CPDLC)","PROJECT PLANNING DOCUMENTATION","Project link finalisation (All)",2018,1,2018,2018,"0",2018,1]
[null,"COM3","3.1.5"," IMPLEMENTATION OF AIR/GROUND COMMUNICATION (HF/VHF voice data, CPDLC)","PROJECT PLANNING DOCUMENTATION","Project Questionnaire (ASECNA)",2018,1,2018,2018,"0",2018,1]
[null,"COM3","3.2.1"," IMPLEMENTATION OF AIR/GROUND COMMUNICATION (HF/VHF voice data, CPDLC)","AIR-GROUND IMPLEMENTATION STATUS ","Implementation status report of HF &VHF stations (Voice & data Link) ",2018,2,2022,2020,"-2","Ongoing",0.54]
[null,"COM3","3.2.2"," IMPLEMENTATION OF AIR/GROUND COMMUNICATION (HF/VHF voice data, CPDLC)","AIR-GROUND IMPLEMENTATION STATUS ","Implementation/Operation status report of CPDLC Circuits ",2018,2,2022,2020,"-2","Ongoing",0.54]
[null,"COM3","3.2.3"," IMPLEMENTATION OF AIR/GROUND COMMUNICATION (HF/VHF voice data, CPDLC)","AIR-GROUND IMPLEMENTATION STATUS ","Implementation/sharing and Operation status report of Remote VHF/HF systems ",2018,2,2022,2020,"-2","Ongoing",0.54]
[null,"COM3","3.2.4"," IMPLEMENTATION OF AIR/GROUND COMMUNICATION (HF/VHF voice data, CPDLC)","AIR-GROUND IMPLEMENTATION STATUS ","Assessment/Reporting on the operation of Air ground communication systems and operation",2018,2,2022,2020,"-2","Ongoing",0.05]
[null,"COM3","3.2.4.1"," IMPLEMENTATION OF AIR/GROUND COMMUNICATION (HF/VHF voice data, CPDLC)","AIR-GROUND IMPLEMENTATION STATUS ","Assessment Template (South Africa)",2021,1,2021,2021,"0",2021,1]
[null,"COM3","3.2.5"," IMPLEMENTATION OF AIR/GROUND COMMUNICATION (HF/VHF voice data, CPDLC)","AIR-GROUND IMPLEMENTATION STATUS ","Detailed guidance provided to States not complying with the AFI AMS Plan ",2018,2,2022,2021,"-1","Ongoing",0]
[null,"COM3","3.2.6"," IMPLEMENTATION OF AIR/GROUND COMMUNICATION (HF/VHF voice data, CPDLC)","AIR-GROUND IMPLEMENTATION STATUS ","List of States with VHF and CPDLC, implemented ",2018,2,2022,2021,"-1","Ongoing",0.54]
[null,"COM3","3.3.1"," IMPLEMENTATION OF AIR/GROUND COMMUNICATION (HF/VHF voice data, CPDLC)","MEETINGS (Teleconferences, Workshops/Seminars, meetings)","Kick-off meeting",2018,1,2018,2018,"0",2018,1]
[null,"COM3","3.3.2"," IMPLEMENTATION OF AIR/GROUND COMMUNICATION (HF/VHF voice data, CPDLC)","MEETINGS (Teleconferences, Workshops/Seminars, meetings)","Project progress meeting",2018,1,2018,2018,"0",2018,1]
[null,"COM3","3.3.3"," IMPLEMENTATION OF AIR/GROUND COMMUNICATION (HF/VHF voice data, CPDLC)","MEETINGS (Teleconferences, Workshops/Seminars, meetings)","Project progress meeting",2018,1,2018,2018,"0",2018,1]
[null,"COM3","3.3.4"," IMPLEMENTATION OF AIR/GROUND COMMUNICATION (HF/VHF voice data, CPDLC)","MEETINGS (Teleconferences, Workshops/Seminars, meetings)","Project progress meeting",2018,1,2018,2018,"0",2018,1]
[null,"COM3","3.3.5"," IMPLEMENTATION OF AIR/GROUND COMMUNICATION (HF/VHF voice data, CPDLC)","MEETINGS (Teleconferences, Workshops/Seminars, meetings)","IIM Sub-Group Meeting ",2019,1,2019,2019,"0",2019,1]
[null,"COM3","3.3.6"," IMPLEMENTATION OF AIR/GROUND COMMUNICATION (HF/VHF voice data, CPDLC)","MEETINGS (Teleconferences, Workshops/Seminars, meetings)","Project progress meeting",2020,1,2020,2020,"0",2020,1]
[null,"COM3","3.3.7"," IMPLEMENTATION OF AIR/GROUND COMMUNICATION (HF/VHF voice data, CPDLC)","MEETINGS (Teleconferences, Workshops/Seminars, meetings)","IIM PTC Meeting",2021,1,2021,2021,"0",2021,1]
[null,"COM3","3.3.8"," IMPLEMENTATION OF AIR/GROUND COMMUNICATION (HF/VHF voice data, CPDLC)","MEETINGS (Teleconferences, Workshops/Seminars, meetings)","Project progress meeting",2021,1,2021,2021,"0",2021,1]
[null,"COM3","3.3.9"," IMPLEMENTATION OF AIR/GROUND COMMUNICATION (HF/VHF voice data, CPDLC)","MEETINGS (Teleconferences, Workshops/Seminars, meetings)","Project progress meeting",2021,1,2021,2021,"0",2021,1]
[null,"COM3","3.3.10"," IMPLEMENTATION OF AIR/GROUND COMMUNICATION (HF/VHF voice data, CPDLC)","MEETINGS (Teleconferences, Workshops/Seminars, meetings)","IIM PTC Meeting",2021,1,2021,2021,{"$f":"IMSUB(J54,I54)","v":"0"},2021,1]
[null,"COM3","3.3.11"," IMPLEMENTATION OF AIR/GROUND COMMUNICATION (HF/VHF voice data, CPDLC)","MEETINGS (Teleconferences, Workshops/Seminars, meetings)","Project progress meeting",2021,1,2021,2021,"0",2021,1]
[null,"COM3","3.3.12"," IMPLEMENTATION OF AIR/GROUND COMMUNICATION (HF/VHF voice data, CPDLC)","MEETINGS (Teleconferences, Workshops/Seminars, meetings)","Project progress meeting",2021,1,2021,2021,"0","Ongoing",0]
[null,"COM3","3.3.13"," IMPLEMENTATION OF AIR/GROUND COMMUNICATION (HF/VHF voice data, CPDLC)","MEETINGS (Teleconferences, Workshops/Seminars, meetings)","Project progress meeting",2021,1,2021,2021,"0","Ongoing",0]
[null,"COM3","3.3.14"," IMPLEMENTATION OF AIR/GROUND COMMUNICATION (HF/VHF voice data, CPDLC)","MEETINGS (Teleconferences, Workshops/Seminars, meetings)","Project progress meeting",2022,1,2022,2021,"-1","Ongoing",0]
[null,"COM3","3.3.15"," IMPLEMENTATION OF AIR/GROUND COMMUNICATION (HF/VHF voice data, CPDLC)","MEETINGS (Teleconferences, Workshops/Seminars, meetings)","Project Close-out meeting",2022,1,2022,2021,"-1","Ongoing",0]
[null,"COM3","3.4.1"," IMPLEMENTATION OF AIR/GROUND COMMUNICATION (HF/VHF voice data, CPDLC)","HFDL / VDL Requirement (Manual / Guidance) – South Africa","Project Initiation",2021,1,2021,2021,"0",2021,1]
[null,"COM3","3.4.2"," IMPLEMENTATION OF AIR/GROUND COMMUNICATION (HF/VHF voice data, CPDLC)","HFDL / VDL Requirement (Manual / Guidance) – South Africa","Framework",2021,1,2021,2021,"0",2021,1]
[null,"COM3","3.4.3"," IMPLEMENTATION OF AIR/GROUND COMMUNICATION (HF/VHF voice data, CPDLC)","HFDL / VDL Requirement (Manual / Guidance) – South Africa","HFDL Manual (South Africa and Ghana)",2021,1,2021,2021,"0","Ongoing",0.7]
[null,"COM3","3.4.4"," IMPLEMENTATION OF AIR/GROUND COMMUNICATION (HF/VHF voice data, CPDLC)","HFDL / VDL Requirement (Manual / Guidance) – South Africa","HFDL CONOPS",2021,1,2021,2021,"0","Ongoing",0.9]
[null,"COM3","3.4.5"," IMPLEMENTATION OF AIR/GROUND COMMUNICATION (HF/VHF voice data, CPDLC)","HFDL / VDL Requirement (Manual / Guidance) – South Africa","VDL Manual",2021,1,2021,2021,"0","Ongoing",0]
[null,"COM3","3.4.6"," IMPLEMENTATION OF AIR/GROUND COMMUNICATION (HF/VHF voice data, CPDLC)","HFDL / VDL Requirement (Manual / Guidance) – South Africa","VDL CONOPS ",2021,1,2021,2021,"0","Ongoing",0]
[null,"COM3","3.4.7"," IMPLEMENTATION OF AIR/GROUND COMMUNICATION (HF/VHF voice data, CPDLC)","HFDL / VDL Requirement (Manual / Guidance) – South Africa","Review",2021,1,2021,2021,"0","Ongoing",0]
[null,"COM3","3.4.8"," IMPLEMENTATION OF AIR/GROUND COMMUNICATION (HF/VHF voice data, CPDLC)","HFDL / VDL Requirement (Manual / Guidance) – South Africa","Consolidation & Finalisation",2022,1,2022,2021,"-1","Ongoing",0]
[null,"COM3","3.4.9"," IMPLEMENTATION OF AIR/GROUND COMMUNICATION (HF/VHF voice data, CPDLC)","HFDL / VDL Requirement (Manual / Guidance) – South Africa","Approval/Publish",2022,1,2022,2021,"-1","Ongoing",0]
[null,"COM3","3.5.1"," IMPLEMENTATION OF AIR/GROUND COMMUNICATION (HF/VHF voice data, CPDLC)","AFI Communication Strategy (Botswana)","Preparatory Phase – Initiation meeting",2021,1,2021,2021,"0","Ongoing",0.3]
[null,"COM3","3.5.2"," IMPLEMENTATION OF AIR/GROUND COMMUNICATION (HF/VHF voice data, CPDLC)","AFI Communication Strategy (Botswana)","Assessment and Analysis Phase (Current Environment)",2021,1,2021,2021,"0","Ongoing",0.05]
[null,"COM3","3.5.2.1"," IMPLEMENTATION OF AIR/GROUND COMMUNICATION (HF/VHF voice data, CPDLC)","AFI Communication Strategy (Botswana)","SWOT",2021,1,2021,2021,"0","Ongoing",0]
[null,"COM3","3.5.2.2"," IMPLEMENTATION OF AIR/GROUND COMMUNICATION (HF/VHF voice data, CPDLC)","AFI Communication Strategy (Botswana)","PESTLE",2021,1,2021,2021,"0","Ongoing",0]
[null,"COM3","3.5.3"," IMPLEMENTATION OF AIR/GROUND COMMUNICATION (HF/VHF voice data, CPDLC)","AFI Communication Strategy (Botswana)","Design Phase",2021,1,2021,2021,"0","Ongoing",0]
[null,"COM3","3.5.3.1"," IMPLEMENTATION OF AIR/GROUND COMMUNICATION (HF/VHF voice data, CPDLC)","AFI Communication Strategy (Botswana)","Define Vision, Mission and Values",2021,1,2021,2021,"0","Ongoing",0]
[null,"COM3","3.5.3.2"," IMPLEMENTATION OF AIR/GROUND COMMUNICATION (HF/VHF voice data, CPDLC)","AFI Communication Strategy (Botswana)","Goals, Objectives, Strategies and Expected Results",2021,1,2021,2021,"0","Ongoing",0]
[null,"COM3","3.5.4"," IMPLEMENTATION OF AIR/GROUND COMMUNICATION (HF/VHF voice data, CPDLC)","AFI Communication Strategy (Botswana)","Implement Phase",2021,1,2021,2021,"0","Ongoing",0]
[null,"COM3","3.5.4.1"," IMPLEMENTATION OF AIR/GROUND COMMUNICATION (HF/VHF voice data, CPDLC)","AFI Communication Strategy (Botswana)","Action Plans",2021,1,2021,2021,"0","Ongoing",0]
[null,"COM3","3.5.5"," IMPLEMENTATION OF AIR/GROUND COMMUNICATION (HF/VHF voice data, CPDLC)","AFI Communication Strategy (Botswana)","Performance Measurement Phase",2021,1,2021,2021,"0","Ongoing",0]
[null,"COM3","3.5.5.1"," IMPLEMENTATION OF AIR/GROUND COMMUNICATION (HF/VHF voice data, CPDLC)","AFI Communication Strategy (Botswana)","Indicators",2021,1,2021,2021,"0","Ongoing",0]
[null,"COM3","3.5.6"," IMPLEMENTATION OF AIR/GROUND COMMUNICATION (HF/VHF voice data, CPDLC)","AFI Communication Strategy (Botswana)","Review and Modify Phase",2025,1,2026,2025,"-1","Ongoing",0]
[null,"COM3","3.5.7"," IMPLEMENTATION OF AIR/GROUND COMMUNICATION (HF/VHF voice data, CPDLC)","AFI Communication Strategy (Botswana)","Review",2022,1,2022,2022,"0","Ongoing",0]
[null,"COM3","3.5.8"," IMPLEMENTATION OF AIR/GROUND COMMUNICATION (HF/VHF voice data, CPDLC)","AFI Communication Strategy (Botswana)","Consolidation & Finalisation",2022,1,2022,2022,"0","Ongoing",0]
[null,"COM3","3.5.9"," IMPLEMENTATION OF AIR/GROUND COMMUNICATION (HF/VHF voice data, CPDLC)","AFI Communication Strategy (Botswana)","Approval/Publish",2022,1,2022,2022,"0","Ongoing",0]
[null,"COM3","3.6.1"," IMPLEMENTATION OF AIR/GROUND COMMUNICATION (HF/VHF voice data, CPDLC)","COM 3 Project Costing Report (South Africa)","Project Costing Template ",2021,1,2021,2021,"0","Ongoing",0.1]
[null,"COM3","3.6.2"," IMPLEMENTATION OF AIR/GROUND COMMUNICATION (HF/VHF voice data, CPDLC)","COM 3 Project Costing Report (South Africa)","Gather Requirements – Assessment Report",2021,1,2021,2021,"0","Ongoing",0]
[null,"COM3","3.6.3"," IMPLEMENTATION OF AIR/GROUND COMMUNICATION (HF/VHF voice data, CPDLC)","COM 3 Project Costing Report (South Africa)","Draft COM3 Project Costing Report",2022,1,2022,2022,"0","Ongoing",0]
[null,"COM3","3.6.4"," IMPLEMENTATION OF AIR/GROUND COMMUNICATION (HF/VHF voice data, CPDLC)","COM 3 Project Costing Report (South Africa)","Final COM3 Project Costing Report",2022,1,2022,2022,"0","Ongoing",0]
[null,"COM4","4.1.1","IMPLEMENTATION OF INTEROPERABLE SEAMLESS TELECOMMUNICATION INFRASTRUCTURE","PROJECT PLANNING DOCUMENTATION","Project team coordinators and experts appointment finalisation",2018,1,2018,2019,"1",2020,0]
[null,"COM4","4.1.2","IMPLEMENTATION OF INTEROPERABLE SEAMLESS TELECOMMUNICATION INFRASTRUCTURE","PROJECT PLANNING DOCUMENTATION","Project Team Organization",2018,1,2018,2019,"1",2020,0]
[null,"COM4","4.1.3","IMPLEMENTATION OF INTEROPERABLE SEAMLESS TELECOMMUNICATION INFRASTRUCTURE","PROJECT PLANNING DOCUMENTATION","Project ToR and Description ",2018,1,2018,2019,"1",2020,0]
[null,"COM4","4.1.4","IMPLEMENTATION OF INTEROPERABLE SEAMLESS TELECOMMUNICATION INFRASTRUCTURE","PROJECT PLANNING DOCUMENTATION","Project link finalisation ",2018,1,2018,2019,"1",2020,0]
[null,"COM4","4.1.5","IMPLEMENTATION OF INTEROPERABLE SEAMLESS TELECOMMUNICATION INFRASTRUCTURE","PROJECT PLANNING DOCUMENTATION","Project Questionnaire ",2018,1,2018,2019,"1",2020,0]
[null,"COM4","4.1.6","IMPLEMENTATION OF INTEROPERABLE SEAMLESS TELECOMMUNICATION INFRASTRUCTURE","PROJECT PLANNING DOCUMENTATION","Project Costing",2020,1,2021,2020,"-1","Ongoing ",0]
[null,"COM4","4.2","IMPLEMENTATION OF INTEROPERABLE SEAMLESS TELECOMMUNICATION INFRASTRUCTURE",{"$f":"UPPER(\"Background, assessment and update of AFI ATN backbone architecture\")","v":"BACKGROUND, ASSESSMENT AND UPDATE OF AFI ATN BACKBONE ARCHITECTURE"},"Background, assessment and update of AFI ATN backbone architecture   ",2018,1,2021,2020,"-1","Ongoing",0]
[null,"COM4","4.3","IMPLEMENTATION OF INTEROPERABLE SEAMLESS TELECOMMUNICATION INFRASTRUCTURE",{"$f":"UPPER(\"Assessment of the current AFI VSAT networks with regard to regard to the ATM requirements\")","v":"ASSESSMENT OF THE CURRENT AFI VSAT NETWORKS WITH REGARD TO REGARD TO THE ATM REQUIREMENTS"},"Assessment of the current AFI VSAT networks with regard to regard to the ATM requirements  ",2018,1,2021,2020,"-1","Ongoing",0]
[null,"COM4","4.4","IMPLEMENTATION OF INTEROPERABLE SEAMLESS TELECOMMUNICATION INFRASTRUCTURE",{"$f":"UPPER(\"Assessment of the current AFI VSAT networks with regard to regard to the ATM requirements\")","v":"ASSESSMENT OF THE CURRENT AFI VSAT NETWORKS WITH REGARD TO REGARD TO THE ATM REQUIREMENTS"},"Assessment of AFI VSAT networks interconnection/interoperability with regard to the ATM requirements  ",2018,1,2021,2020,"-1","Ongoing",0]
[null,"COM4","4.5","IMPLEMENTATION OF INTEROPERABLE SEAMLESS TELECOMMUNICATION INFRASTRUCTURE",{"$f":"UPPER(\"Monitoring of the AFI Integrated Regional Telecommunication Infrastructure implementation\")","v":"MONITORING OF THE AFI INTEGRATED REGIONAL TELECOMMUNICATION INFRASTRUCTURE IMPLEMENTATION"},"Study of the AFI Integrated Regional Telecommunication Infrastructure including:\nIP backbone architecture \nIP address scheme definition\nAssessment of the bandwidth",2018,1,2021,2020,"-1","Ongoing",0]
[null,"COM4","4.6","IMPLEMENTATION OF INTEROPERABLE SEAMLESS TELECOMMUNICATION INFRASTRUCTURE",{"$f":"UPPER(\"Monitoring of the AFI Integrated Regional Telecommunication Infrastructure implementation\")","v":"MONITORING OF THE AFI INTEGRATED REGIONAL TELECOMMUNICATION INFRASTRUCTURE IMPLEMENTATION"},"Monitoring of the AFI Integrated Regional Telecommunication Infrastructure implementation ",2018,1,2021,2020,"-1","Ongoing",0]
[null,"COM5","5.1.1","ASSESSMENT OF AFI AERONAUTICAL CYBER SECURITY","PROJECT PLANNING DOCUMENTATION","Project team coordinators and experts appointment finalisation",2018,1,2018,2019,"1",2020,0]
[null,"COM5","5.1.2","ASSESSMENT OF AFI AERONAUTICAL CYBER SECURITY","PROJECT PLANNING DOCUMENTATION","Project Team Organization",2018,1,2018,2019,"1",2020,0]
[null,"COM5","5.1.3","ASSESSMENT OF AFI AERONAUTICAL CYBER SECURITY","PROJECT PLANNING DOCUMENTATION","Project ToR and Description ",2018,1,2018,2019,"1",2020,0]
[null,"COM5","5.1.4","ASSESSMENT OF AFI AERONAUTICAL CYBER SECURITY","PROJECT PLANNING DOCUMENTATION","Project link finalisation ",2018,1,2018,2019,"1",2020,0]
[null,"COM5","5.1.5","ASSESSMENT OF AFI AERONAUTICAL CYBER SECURITY","PROJECT PLANNING DOCUMENTATION","Project Questionnaire ",2018,1,2018,2019,"1",2020,0]
[null,"COM5","5.1.6","ASSESSMENT OF AFI AERONAUTICAL CYBER SECURITY","PROJECT PLANNING DOCUMENTATION","Project Costing",2020,1,2021,2020,"-1","Ongoing ",0]
[null,"COM5","5.2.1","ASSESSMENT OF AFI AERONAUTICAL CYBER SECURITY",{"$f":"UPPER(\"Assessment of cyber resilience of Air Navigation services in Africa\")","v":"ASSESSMENT OF CYBER RESILIENCE OF AIR NAVIGATION SERVICES IN AFRICA"},"List all systems and data used for Air Navigation Services in AFI Region (expert knowledge , APIRG reports,…",2019,1,2020,2021,"1","Ongoing",0]
[null,"COM5","5.2.2","ASSESSMENT OF AFI AERONAUTICAL CYBER SECURITY","ASSESSMENT OF CYBER RESILIENCE OF AIR NAVIGATION SERVICES IN AFRICA","Develop Project baseline questionnairE",2019,1,2020,2021,"1","Ongoing",0]
[null,"COM5","5.2.3","ASSESSMENT OF AFI AERONAUTICAL CYBER SECURITY","ASSESSMENT OF CYBER RESILIENCE OF AIR NAVIGATION SERVICES IN AFRICA","Analyze AFI States and ANSPs feedbacks (through questionnaire)",2018,1,2020,2021,"1","Ongoing",0]
[null,"COM5","5.2.4","ASSESSMENT OF AFI AERONAUTICAL CYBER SECURITY","ASSESSMENT OF CYBER RESILIENCE OF AIR NAVIGATION SERVICES IN AFRICA","Identify the main cyber threats (ENISA reports, Symantec, Aviation cyber incidents information",2018,1,2020,2021,{"$f":"IMSUB(J108,I108)","v":"1"},"Ongoing",0]
[null,"COM5","5.3.1","ASSESSMENT OF AFI AERONAUTICAL CYBER SECURITY",{"$f":"UPPER(\"Cyber Framework\")","v":"CYBER FRAMEWORK"},"Analyze existing cybersecurity and cyber resilience frameworks (ISO 27000 series, NIST framework, ICAO thrust framework)",2018,1,2020,2021,"1","Ongoing",0]
[null,"COM5","5.3.2","ASSESSMENT OF AFI AERONAUTICAL CYBER SECURITY","CYBER FRAMEWORK","Develop an AFI Cyber resilience framework for Air Navigation services",2018,1,2020,2021,"1","Ongoing",0]
[null,"COM5","5.3.3","ASSESSMENT OF AFI AERONAUTICAL CYBER SECURITY","CYBER FRAMEWORK","Update the framework with the ICAO latest developments and list of references provided by IATA",2018,1,2020,2021,"1","Ongoing",0]
[null,"COM5","5.4.1","ASSESSMENT OF AFI AERONAUTICAL CYBER SECURITY",{"$f":"UPPER(\"Cyber Safety Awareness\")","v":"CYBER SAFETY AWARENESS"},"Organize online meeting with other IIM projects to discuss cyber issues",2018,1,2020,2021,"1","Ongoing",0]
[null,"COM5","5.4.2","ASSESSMENT OF AFI AERONAUTICAL CYBER SECURITY","CYBER SAFETY AWARENESS","Organize in coordination with IIM Secretariat webinars/cyber events on cyber safety and resilience",2018,1,2020,2021,"1","Ongoing",0]
[null,"COM5","5.5.1","ASSESSMENT OF AFI AERONAUTICAL CYBER SECURITY",{"$f":"UPPER(\"Project Coordination\")","v":"PROJECT COORDINATION"},"Report the progress status to IIM Secretariat",2018,1,2020,2021,"1","Ongoing",0]
[null,"COM5","5.5.2","ASSESSMENT OF AFI AERONAUTICAL CYBER SECURITY","PROJECT COORDINATION","Organize regular progress meeting",2018,1,2020,2021,"1","Ongoing",0]
[null,"COM5","5.5.3","ASSESSMENT OF AFI AERONAUTICAL CYBER SECURITY","PROJECT COORDINATION","Organize specific meetings for updating the framewor",2018,1,2020,2021,"1","Ongoing",0]
[null,"NAV","6.1.1","IMPLEMENTATION OF CONVENTIONAL NAV'AIDS AND GNSS (Core and Augmented)","PROJECT PLANNING DOCUMENTATION","Project team coordinators and experts appointment finalisation",2018,1,2018,2019,"1",2020,0]
[null,"NAV","6.1.2","IMPLEMENTATION OF CONVENTIONAL NAV'AIDS AND GNSS (Core and Augmented)","PROJECT PLANNING DOCUMENTATION","Project Team Organization",2018,1,2018,2019,"1",2020,0]
[null,"NAV","6.1.3","IMPLEMENTATION OF CONVENTIONAL NAV'AIDS AND GNSS (Core and Augmented)","PROJECT PLANNING DOCUMENTATION","Project ToR and Description ",2018,1,2018,2019,"1",2020,0]
[null,"NAV","6.1.4","IMPLEMENTATION OF CONVENTIONAL NAV'AIDS AND GNSS (Core and Augmented)","PROJECT PLANNING DOCUMENTATION","Project link finalisation ",2018,1,2018,2019,"1",2020,0]
[null,"NAV","6.1.5","IMPLEMENTATION OF CONVENTIONAL NAV'AIDS AND GNSS (Core and Augmented)","PROJECT PLANNING DOCUMENTATION","Project Questionnaire ",2018,1,2018,2019,"1",2020,0]
[null,"NAV","6.1.6","IMPLEMENTATION OF CONVENTIONAL NAV'AIDS AND GNSS (Core and Augmented)","PROJECT PLANNING DOCUMENTATION","Project Costing",2020,1,2021,2020,"-1","Ongoing ",0]
[null,"NAV","6.2","IMPLEMENTATION OF CONVENTIONAL NAV'AIDS AND GNSS (Core and Augmented)",{"$f":"UPPER(\"Implementation of VOR/DMEs/ILSs\")","v":"IMPLEMENTATION OF VOR/DMES/ILSS"},"Implementation of VOR/DMEs/ILSs",2018,1,2020,2020,"0","Ongoing",0]
[null,"NAV","6.3","IMPLEMENTATION OF CONVENTIONAL NAV'AIDS AND GNSS (Core and Augmented)",{"$f":"UPPER(\"Implementation of Augmented GNSS (ABAS/GBAS/SBAS)\")","v":"IMPLEMENTATION OF AUGMENTED GNSS (ABAS/GBAS/SBAS)"},"Implementation of Augmented GNSS (ABAS/GBAS/SBAS)",2018,1,2020,2020,"0","Ongoing",0]
[null,"NAV","6.4","IMPLEMENTATION OF CONVENTIONAL NAV'AIDS AND GNSS (Core and Augmented)",{"$f":"UPPER(\"Operation of conventional Nav’Aids and GNSS systems\")","v":"OPERATION OF CONVENTIONAL NAV’AIDS AND GNSS SYSTEMS"},"Operation of conventional Nav’Aids and GNSS systems",2018,1,2020,2020,"0","Ongoing",0]
[null,"NAV","6.5","IMPLEMENTATION OF CONVENTIONAL NAV'AIDS AND GNSS (Core and Augmented)",{"$f":"UPPER(\"Teleconferences, Workshops/Seminars, meetings (French and English) on Nav’aidsand GNSSS systems operation and their implementation scheme\")","v":"TELECONFERENCES, WORKSHOPS/SEMINARS, MEETINGS (FRENCH AND ENGLISH) ON NAV’AIDSAND GNSSS SYSTEMS OPERATION AND THEIR IMPLEMENTATION SCHEME"},"Teleconferences, Workshops/Seminars, meetings (French and English) on Nav’aidsand GNSSS systems operation and their implementation scheme",2018,1,2020,2020,"0","Ongoing",0]
[null,"NAV","6.6","IMPLEMENTATION OF CONVENTIONAL NAV'AIDS AND GNSS (Core and Augmented)",{"$f":"UPPER(\"Assessment/Mitigation of GNSS vulnerabilities\")","v":"ASSESSMENT/MITIGATION OF GNSS VULNERABILITIES"},"Assessment/Mitigation of GNSS vulnerabilities",2018,1,2020,2020,"0","Ongoing",0]
[null,"NAV","6.7","IMPLEMENTATION OF CONVENTIONAL NAV'AIDS AND GNSS (Core and Augmented)",{"$f":"UPPER(\"Assessment/Reporting onthe operation of Air ground communication systems and operation of Nav’Aids and GNSS system\")","v":"ASSESSMENT/REPORTING ONTHE OPERATION OF AIR GROUND COMMUNICATION SYSTEMS AND OPERATION OF NAV’AIDS AND GNSS SYSTEM"},"Assessment/Reporting onthe operation of Air ground communication systems and operation of Nav’Aids and GNSS system",2018,1,2020,2020,"0","Ongoing",0]
[null,"NAV","6.8","IMPLEMENTATION OF CONVENTIONAL NAV'AIDS AND GNSS (Core and Augmented)",{"$f":"UPPER(\"Detailed guidance provided to States not complying with the AFI Navigation Plan\")","v":"DETAILED GUIDANCE PROVIDED TO STATES NOT COMPLYING WITH THE AFI NAVIGATION PLAN"},"Detailed guidance provided to States not complying with the AFI Navigation Plan",2018,1,2020,2020,"0","Ongoing",0]
[null,"NAV","6.9","IMPLEMENTATION OF CONVENTIONAL NAV'AIDS AND GNSS (Core and Augmented)",{"$f":"UPPER(\"List of S tates with Conventional Nav’aids and GNSS systems , implemented\")","v":"LIST OF S TATES WITH CONVENTIONAL NAV’AIDS AND GNSS SYSTEMS , IMPLEMENTED"},"List of S tates with Conventional Nav’aids and GNSS systems , implemented",2018,1,2020,2020,"0","Ongoing",0]
[null,"SUR","7.1.1","IMPLEMENTATION OF SURVEILLANCE SYSTEMS","PROJECT PLANNING DOCUMENTATION","Project team coordinators and experts appointment finalisation",2018,1,2018,2019,"1",2020,0]
[null,"SUR","7.1.2","IMPLEMENTATION OF SURVEILLANCE SYSTEMS","PROJECT PLANNING DOCUMENTATION","Project Team Organization",2018,1,2018,2019,"1",2020,0]
[null,"SUR","7.1.3","IMPLEMENTATION OF SURVEILLANCE SYSTEMS","PROJECT PLANNING DOCUMENTATION","Project ToR and Description ",2018,1,2018,2019,"1",2020,0]
[null,"SUR","7.1.4","IMPLEMENTATION OF SURVEILLANCE SYSTEMS","PROJECT PLANNING DOCUMENTATION","Project link finalisation ",2018,1,2018,2019,"1",2020,0]
[null,"SUR","7.1.5","IMPLEMENTATION OF SURVEILLANCE SYSTEMS","PROJECT PLANNING DOCUMENTATION","Project Questionnaire ",2018,1,2018,2019,"1",2020,0]
[null,"SUR","7.1.6","IMPLEMENTATION OF SURVEILLANCE SYSTEMS","PROJECT PLANNING DOCUMENTATION","Project Costing",2020,1,2021,2020,"-1","Ongoing ",0]
[null,"SPEC","8.1.1","DEVELOPMENT OF POLICIES AND SYSTEMS FOR PROTECTION OF AERONAUTICAL FREQUENCY","PROJECT PLANNING DOCUMENTATION","Project team coordinators and experts appointment finalisation",2018,1,2018,2019,"1",2020,0]
[null,"SPEC","8.1.2","DEVELOPMENT OF POLICIES AND SYSTEMS FOR PROTECTION OF AERONAUTICAL FREQUENCY","PROJECT PLANNING DOCUMENTATION","Project Team Organization",2018,1,2018,2019,"1",2020,0]
[null,"SPEC","8.1.3","DEVELOPMENT OF POLICIES AND SYSTEMS FOR PROTECTION OF AERONAUTICAL FREQUENCY","PROJECT PLANNING DOCUMENTATION","Project ToR and Description ",2018,1,2018,2019,"1",2020,0]
[null,"SPEC","8.1.4","DEVELOPMENT OF POLICIES AND SYSTEMS FOR PROTECTION OF AERONAUTICAL FREQUENCY","PROJECT PLANNING DOCUMENTATION","Project link finalisation ",2018,1,2018,2019,"1",2020,0]
[null,"SPEC","8.1.5","DEVELOPMENT OF POLICIES AND SYSTEMS FOR PROTECTION OF AERONAUTICAL FREQUENCY","PROJECT PLANNING DOCUMENTATION","Project Questionnaire ",2018,1,2018,2019,"1",2020,0]
[null,"SPEC","8.1.6","DEVELOPMENT OF POLICIES AND SYSTEMS FOR PROTECTION OF AERONAUTICAL FREQUENCY","PROJECT PLANNING DOCUMENTATION","Project Costing",2020,1,2021,2020,"-1","Ongoing ",0]
[null,"SPEC","8.2","DEVELOPMENT OF POLICIES AND SYSTEMS FOR PROTECTION OF AERONAUTICAL FREQUENCY",{"$f":"UPPER(\"MOU/ agreement template on Aeronautical frequency assignment coordination between CAAs and frequency management regulators in States\")","v":"MOU/ AGREEMENT TEMPLATE ON AERONAUTICAL FREQUENCY ASSIGNMENT COORDINATION BETWEEN CAAS AND FREQUENCY MANAGEMENT REGULATORS IN STATES"},"MOU/ agreement template on Aeronautical frequency assignment coordination between CAAs and frequency management regulators in States",2021,1,2021,2021,"0","Ongoing",0]
[null,"SPEC","8.3","DEVELOPMENT OF POLICIES AND SYSTEMS FOR PROTECTION OF AERONAUTICAL FREQUENCY",{"$f":"UPPER(\"Procedures for coordination of frequency assignment with ICAO -for inclusion in frequency finder tool\")","v":"PROCEDURES FOR COORDINATION OF FREQUENCY ASSIGNMENT WITH ICAO -FOR INCLUSION IN FREQUENCY FINDER TOOL"},"Procedures for coordination of frequency assignment with ICAO -for inclusion in frequency finder tool",2021,1,2021,2021,"0","Ongoing",0]
[null,"SPEC","8.4","DEVELOPMENT OF POLICIES AND SYSTEMS FOR PROTECTION OF AERONAUTICAL FREQUENCY",{"$f":"UPPER(\"Platform and processes for review of ITU agenda items in preparation for WRC meetings\")","v":"PLATFORM AND PROCESSES FOR REVIEW OF ITU AGENDA ITEMS IN PREPARATION FOR WRC MEETINGS"},"Platform and processes for review of ITU agenda items in preparation for WRC meetings",2021,1,2021,2021,"0","Ongoing",0]
[null,"SPEC","8.5","DEVELOPMENT OF POLICIES AND SYSTEMS FOR PROTECTION OF AERONAUTICAL FREQUENCY",{"$f":"UPPER(\"Conducted workshops on ICAO Annex 10 volume 5 DOC 9718, and ICAO frequency finder tool requirements and procedures on Aeronautical frequency allotment\")","v":"CONDUCTED WORKSHOPS ON ICAO ANNEX 10 VOLUME 5 DOC 9718, AND ICAO FREQUENCY FINDER TOOL REQUIREMENTS AND PROCEDURES ON AERONAUTICAL FREQUENCY ALLOTMENT"},"Conducted workshops on ICAO Annex 10 volume 5 DOC 9718, and ICAO frequency finder tool requirements and procedures on Aeronautical frequency allotment ",2021,1,2021,2021,"0","Ongoing",0]
[null,"SPEC","8.6","DEVELOPMENT OF POLICIES AND SYSTEMS FOR PROTECTION OF AERONAUTICAL FREQUENCY",{"$f":"UPPER(\"Report on Studies carried out on requirement for Aeronautical frequency bands and their guard bands needed for safe utilization\")","v":"REPORT ON STUDIES CARRIED OUT ON REQUIREMENT FOR AERONAUTICAL FREQUENCY BANDS AND THEIR GUARD BANDS NEEDED FOR SAFE UTILIZATION"},"Report on Studies carried out on requirement for Aeronautical frequency bands and their guard bands needed for safe utilization.",2021,1,2021,2021,"0","Ongoing",0]
[null,"SPEC","8.7","DEVELOPMENT OF POLICIES AND SYSTEMS FOR PROTECTION OF AERONAUTICAL FREQUENCY",{"$f":"UPPER(\"Project Progress reports\")","v":"PROJECT PROGRESS REPORTS"},"Project Progress reports",2021,1,2021,2021,"0","Ongoing",0]
[null,"MET1","9.1.1","SIGMET/QMS/Deficiencies/D-OPMET  ","PROJECT PLANNING DOCUMENTATION","Project team coordinators and experts appointment finalisation",2018,1,2018,2019,{"$f":"IMSUB(J149,I149)","v":"1"},2020,0]
[null,"MET1","9.1.2","SIGMET/QMS/Deficiencies/D-OPMET  ","PROJECT PLANNING DOCUMENTATION","Project Team Organization",2018,1,2018,2019,"1",2020,0]
[null,"MET1","9.1.3","SIGMET/QMS/Deficiencies/D-OPMET  ","PROJECT PLANNING DOCUMENTATION","Project ToR and Description ",2018,1,2018,2019,"1",2020,0]
[null,"MET1","9.1.4","SIGMET/QMS/Deficiencies/D-OPMET  ","PROJECT PLANNING DOCUMENTATION","Project link finalisation ",2018,1,2018,2019,"1",2020,0]
[null,"MET1","9.1.5","SIGMET/QMS/Deficiencies/D-OPMET  ","PROJECT PLANNING DOCUMENTATION","Project Questionnaire ",2018,1,2018,2019,"1",2020,0]
[null,"MET1","9.1.6","SIGMET/QMS/Deficiencies/D-OPMET  ","PROJECT PLANNING DOCUMENTATION","Project Costing",2020,1,2021,2020,"-1","Ongoing ",0]
[null,"MET1","9.2.1","SIGMET/QMS/Deficiencies/D-OPMET  ","SIGMET","Updated AFI regional SIGMET Guide distributed and placed on ICAO website ",2020,1,2021,2020,"-1","Ongoing ",0]
[null,"MET1","9.2.2","SIGMET/QMS/Deficiencies/D-OPMET  ","SIGMET","Current level of implementation of SIGMET assessed through annual SIGMET trials ",2020,1,2021,2020,"-1","Ongoing ",0]
[null,"MET1","9.2.3","SIGMET/QMS/Deficiencies/D-OPMET  ","SIGMET","An updated list of States not compliant with SIGMET format, established ",2020,1,2021,2020,"-1","Ongoing ",0]
[null,"MET1","9.2.4","SIGMET/QMS/Deficiencies/D-OPMET  ","SIGMET","Details guidance to States not issuing SIGMET, distributed ",2020,1,2021,2020,"-1","Ongoing ",0]
[null,"MET1","9.3.1","SIGMET/QMS/Deficiencies/D-OPMET  ","QMS","An updated list of States not implementing or partially implementing QMS established.  ",2020,1,2021,2020,"-1","Ongoing ",0]
[null,"MET1","9.3.2","SIGMET/QMS/Deficiencies/D-OPMET  ","QMS","Training of MET   personnel in States that have not implemented QMS, performed, and training workshop ",2020,1,2021,2020,"-1","Ongoing ",0]
[null,"MET1","9.3.3","SIGMET/QMS/Deficiencies/D-OPMET  ","QMS","Report distributed ",2020,1,2021,2020,"-1","Ongoing ",0]
[null,"MET1","9.3.4","SIGMET/QMS/Deficiencies/D-OPMET  ","QMS","Training on cost recovery mechanism for MET performed; training workshop report encouraging Sates to institute cost recovery mechanism, distributed. ",2020,1,2021,2020,"-1","Ongoing ",0]
[null,"MET1","9.4.1","SIGMET/QMS/Deficiencies/D-OPMET  ",{"$f":"UPPER(\"Deficiences\")","v":"DEFICIENCES"},"Current air navigation deficiencies in the MET field, assessed and confirmed ",2020,1,2021,2020,"-1","Ongoing ",0]
[null,"MET1","9.4.2","SIGMET/QMS/Deficiencies/D-OPMET  ","DEFICIENCES","Workshops to assist States concerned to address deficiencies related to the implementation of the AMBEX scheme and for the provision of further advice and awareness, issued and distributed ",2020,1,2021,2020,"-1","Ongoing ",0]
[null,"MET1","9.4.3","SIGMET/QMS/Deficiencies/D-OPMET  ","DEFICIENCES","An action plan to assist concerned States to remove long lasting MET deficiencies, established ",2020,1,2021,2020,"-1","Ongoing ",0]
[null,"MET1","9.5.1","SIGMET/QMS/Deficiencies/D-OPMET  ",{"$f":"UPPER(\"Digital OPMET\")","v":"DIGITAL OPMET"},"AFI States implemented digital OPMET in BCC and NOCs in accordance with Amendment 79 to ICAO Annex 3 ",2020,1,2021,2020,"-1","Ongoing ",0]
[null,"MET2","10.1.1","TA-WRNGS/WAFS/AMBEX  ","PROJECT PLANNING DOCUMENTATION","Project team coordinators and experts appointment finalisation",2018,1,2018,2019,"1",2020,0]
[null,"MET2","10.1.2","TA-WRNGS/WAFS/AMBEX  ","PROJECT PLANNING DOCUMENTATION","Project Team Organization",2018,1,2018,2019,"1",2020,0]
[null,"MET2","10.1.3","TA-WRNGS/WAFS/AMBEX  ","PROJECT PLANNING DOCUMENTATION","Project ToR and Description ",2018,1,2018,2019,"1",2020,0]
[null,"MET2","10.1.4","TA-WRNGS/WAFS/AMBEX  ","PROJECT PLANNING DOCUMENTATION","Project link finalisation ",2018,1,2018,2019,"1",2020,0]
[null,"MET2","10.1.5","TA-WRNGS/WAFS/AMBEX  ","PROJECT PLANNING DOCUMENTATION","Project Questionnaire ",2018,1,2018,2019,"1",2020,0]
[null,"MET2","10.1.6","TA-WRNGS/WAFS/AMBEX  ","PROJECT PLANNING DOCUMENTATION","Project Costing",2020,1,2021,2020,"-1","Ongoing ",0]
[null,"MET2","10.2.1","TA-WRNGS/WAFS/AMBEX  ",{"$f":"UPPER(\"Terminal Area Warnings (AD WRNG & WS WRNG(where applicable))\")","v":"TERMINAL AREA WARNINGS (AD WRNG & WS WRNG(WHERE APPLICABLE))"},"Report on Mission to States not compliant with terminal area warning facilities as stipulated in Annex 3 and the AFI eANP , distributed ",2020,1,2020,2020,"0","Ongoing",0]
[null,"MET2","10.2.2","TA-WRNGS/WAFS/AMBEX  ","TERMINAL AREA WARNINGS (AD WRNG & WS WRNG(WHERE APPLICABLE))","Detailed guidance provided to States not issuing terminal area warnings and forecasts ",2020,1,2020,2020,"0","Ongoing",0]
[null,"MET2","10.2.3","TA-WRNGS/WAFS/AMBEX  ","TERMINAL AREA WARNINGS (AD WRNG & WS WRNG(WHERE APPLICABLE))","List of States implementing aerodrome warnings, wind shear warnings/alerts, distributed ",2020,1,2020,2020,"0","Ongoing",0]
[null,"MET2","10.3.1","TA-WRNGS/WAFS/AMBEX  ","WAFS and IAVW ","An updated list of States with active volcanos not implementing IAVW (volcano observatories and VONA), established ",2020,1,2020,2020,"0","Ongoing",0]
[null,"MET2","10.3.2","TA-WRNGS/WAFS/AMBEX  ","WAFS and IAVW "," Remedial action plans developed for the concerned States",2020,1,2020,2020,"0","Ongoing",0]
[null,"MET2","10.3.3","TA-WRNGS/WAFS/AMBEX  ","WAFS and IAVW ","AFI volcanic ash contingency plan (AFI VACP) exercises conducted  ",2020,1,2020,2020,"0","Ongoing",0]
[null,"MET2","10.4.1","TA-WRNGS/WAFS/AMBEX  ","AMBEX","A report on quarterly assessment of the availability and quality of OPMET data in the region, issued,",2020,1,2020,2020,"0","Ongoing",0]
[null,"MET2","10.4.2","TA-WRNGS/WAFS/AMBEX  ","AMBEX"," Remedial action plans developed for the concerned States",2020,1,2020,2020,"0","Ongoing",0]
[null,"MET2","10.4.3","TA-WRNGS/WAFS/AMBEX  ","AMBEX","Seminar on the implementation of AMBEX procedures including RODBs, conducted ",2020,1,2020,2020,"0","Ongoing",0]
[null,"MET3","11.1.1","SPACE WEATHER PROJECT","PROJECT PLANNING DOCUMENTATION","Project team coordinators and experts appointment finalisation",2018,1,2018,2019,"1",2020,0]
[null,"MET3","11.1.2","SPACE WEATHER PROJECT","PROJECT PLANNING DOCUMENTATION","Project Team Organization",2018,1,2018,2019,"1",2020,0]
[null,"MET3","11.1.3","SPACE WEATHER PROJECT","PROJECT PLANNING DOCUMENTATION","Project ToR and Description ",2018,1,2018,2019,"1",2020,0]
[null,"MET3","11.1.4","SPACE WEATHER PROJECT","PROJECT PLANNING DOCUMENTATION","Project link finalisation ",2018,1,2018,2019,"1",2020,0]
[null,"MET3","11.1.5","SPACE WEATHER PROJECT","PROJECT PLANNING DOCUMENTATION","Project Questionnaire ",2018,1,2018,2019,"1",2020,0]
[null,"MET3","11.1.6","SPACE WEATHER PROJECT","PROJECT PLANNING DOCUMENTATION","Project Costing",2020,1,2021,2020,"-1","Ongoing ",0]
[null,"MET3","11.2","SPACE WEATHER PROJECT",{"$f":"UPPER(\"Current level of implementation of\nSWx advisory assessed through annual\nSIGMET trials\")","v":"CURRENT LEVEL OF IMPLEMENTATION OF\nSWX ADVISORY ASSESSED THROUGH ANNUAL\nSIGMET TRIALS"},"Current level of implementation of\nSWx advisory assessed through annual\nSIGMET trials",2020,1,2021,2021,"0","Ongoing",0]
[null,"MET3","11.3","SPACE WEATHER PROJECT",{"$f":"UPPER(\"An updated list of States that have awareness and capability for ingesting the SWx advisory format into their systems established\")","v":"AN UPDATED LIST OF STATES THAT HAVE AWARENESS AND CAPABILITY FOR INGESTING THE SWX ADVISORY FORMAT INTO THEIR SYSTEMS ESTABLISHED"},"An updated list of States that have awareness and capability for ingesting the SWx advisory format into their systems established.",2020,1,2021,2021,"0","Ongoing",0]
[null,"MET3","11.4","SPACE WEATHER PROJECT",{"$f":"UPPER(\"Detailed guidance to States not currently implementing Annex 3 with regards to space weather information\")","v":"DETAILED GUIDANCE TO STATES NOT CURRENTLY IMPLEMENTING ANNEX 3 WITH REGARDS TO SPACE WEATHER INFORMATION"},"Detailed guidance to States not currently implementing Annex 3 with regards to space weather information; ",2020,1,2021,2021,"0","Ongoing",0]
[null,"MET3","11.5","SPACE WEATHER PROJECT",{"$f":"UPPER(\"Develop a draft AFI Concept of Operations for the dissemination of space weather information within the African continent\")","v":"DEVELOP A DRAFT AFI CONCEPT OF OPERATIONS FOR THE DISSEMINATION OF SPACE WEATHER INFORMATION WITHIN THE AFRICAN CONTINENT"},"Develop a draft AFI Concept of Operations for the dissemination of space weather information within the African continent",2020,1,2021,2021,"0","Ongoing",0]
[null,"MET3","11.6","SPACE WEATHER PROJECT",{"$f":"UPPER(\"Workshops and information awareness sessions to assist States concerned to address deficiencies\nrelated to the implementation of the\nSWx information and for the provision of further advice and awareness\")","v":"WORKSHOPS AND INFORMATION AWARENESS SESSIONS TO ASSIST STATES CONCERNED TO ADDRESS DEFICIENCIES\nRELATED TO THE IMPLEMENTATION OF THE\nSWX INFORMATION AND FOR THE PROVISION OF FURTHER ADVICE AND AWARENESS"},"Workshops and information awareness sessions to assist States concerned to address deficiencies\nrelated to the implementation of the\nSWx information and for the provision of further advice and awareness.",2020,1,2021,2021,"0","Ongoing",0]
[null,"MET3","11.7","SPACE WEATHER PROJECT",{"$f":"UPPER(\"An action plan to assist concerned\nStates to understand and interpret SWx information established\")","v":"AN ACTION PLAN TO ASSIST CONCERNED\nSTATES TO UNDERSTAND AND INTERPRET SWX INFORMATION ESTABLISHED"},"An action plan to assist concerned\nStates to understand and interpret SWx information established.",2020,1,2021,2021,"0","Ongoing",0]
[null,"AIM1","12.1.1","ASSESSMENT AND DEVELOPMENT OF QMS APPLIED TO AIM  ","PROJECT PLANNING DOCUMENTATION","Project team coordinators and experts appointment finalisation",2018,1,2018,2019,"1",2020,0]
[null,"AIM1","12.1.2","ASSESSMENT AND DEVELOPMENT OF QMS APPLIED TO AIM  ","PROJECT PLANNING DOCUMENTATION","Project Team Organization",2018,1,2018,2019,"1",2020,0]
[null,"AIM1","12.1.3","ASSESSMENT AND DEVELOPMENT OF QMS APPLIED TO AIM  ","PROJECT PLANNING DOCUMENTATION","Project ToR and Description ",2018,1,2018,2019,"1",2020,0]
[null,"AIM1","12.1.4","ASSESSMENT AND DEVELOPMENT OF QMS APPLIED TO AIM  ","PROJECT PLANNING DOCUMENTATION","Project link finalisation ",2018,1,2018,2019,{"$f":"IMSUB(J197,I197)","v":"1"},2020,0]
[null,"AIM1","12.1.5","ASSESSMENT AND DEVELOPMENT OF QMS APPLIED TO AIM  ","PROJECT PLANNING DOCUMENTATION","Project Questionnaire ",2018,1,2018,2019,"1",2020,0]
[null,"AIM1","12.1.6","ASSESSMENT AND DEVELOPMENT OF QMS APPLIED TO AIM  ","PROJECT PLANNING DOCUMENTATION","Project Costing",2020,1,2021,2020,"-1","Ongoing ",0]
[null,"AIM 2","13.1.1","AFI AIM/2:IMPLEMENTATION OF AERONAUTICAL INFORMATION EXCHANGE SYSTEMS (AIXM)","PROJECT PLANNING DOCUMENTATION","Project team coordinators and experts appointment finalisation",2018,1,2018,2019,"1",2020,0]
[null,"AIM 2","13.1.2","AFI AIM/2:IMPLEMENTATION OF AERONAUTICAL INFORMATION EXCHANGE SYSTEMS (AIXM)","PROJECT PLANNING DOCUMENTATION","Project Team Organization",2018,1,2018,2019,"1",2020,0]
[null,"AIM 2","13.1.3","AFI AIM/2:IMPLEMENTATION OF AERONAUTICAL INFORMATION EXCHANGE SYSTEMS (AIXM)","PROJECT PLANNING DOCUMENTATION","Project ToR and Description ",2018,1,2018,2019,"1",2020,0]
[null,"AIM 2","13.1.4","AFI AIM/2:IMPLEMENTATION OF AERONAUTICAL INFORMATION EXCHANGE SYSTEMS (AIXM)","PROJECT PLANNING DOCUMENTATION","Project link finalisation ",2018,1,2018,2019,"1",2020,0]
[null,"AIM 2","13.1.5","AFI AIM/2:IMPLEMENTATION OF AERONAUTICAL INFORMATION EXCHANGE SYSTEMS (AIXM)","PROJECT PLANNING DOCUMENTATION","Project Questionnaire ",2018,1,2018,2019,"1",2020,0]
[null,"AIM 2","13.1.6","AFI AIM/2:IMPLEMENTATION OF AERONAUTICAL INFORMATION EXCHANGE SYSTEMS (AIXM)","PROJECT PLANNING DOCUMENTATION","Project Costing",2020,1,2021,2020,"-1","Ongoing ",0]
[null,"AIM 2","13.2","AFI AIM/2:IMPLEMENTATION OF AERONAUTICAL INFORMATION EXCHANGE SYSTEMS (AIXM)",{"$f":"UPPER(\"Survey of the provision of IAIP, using a table\")","v":"SURVEY OF THE PROVISION OF IAIP, USING A TABLE"},"Survey of the provision of IAIP, using a table",2018,1,2018,2022,"4","Ongoing",0]
[null,"AIM 2","13.3","AFI AIM/2:IMPLEMENTATION OF AERONAUTICAL INFORMATION EXCHANGE SYSTEMS (AIXM)",{"$f":"UPPER(\"Circulation of IAIP survey to States\")","v":"CIRCULATION OF IAIP SURVEY TO STATES"},"Circulation of IAIP survey to States",2018,1,2018,2022,"4","Ongoing",0]
[null,"AIM 2","13.4","AFI AIM/2:IMPLEMENTATION OF AERONAUTICAL INFORMATION EXCHANGE SYSTEMS (AIXM)",{"$f":"UPPER(\"Collection and updating\")","v":"COLLECTION AND UPDATING"},"Collection and updating ",2018,1,2018,2022,"4","Ongoing",0]
[null,"AIM 2","13.5","AFI AIM/2:IMPLEMENTATION OF AERONAUTICAL INFORMATION EXCHANGE SYSTEMS (AIXM)",{"$f":"UPPER(\"Collection of experiences in AFI States with the electronic AIP\")","v":"COLLECTION OF EXPERIENCES IN AFI STATES WITH THE ELECTRONIC AIP"},"Collection of experiences in AFI States with the electronic AIP",2018,1,2018,2022,"4","Ongoing",0]
[null,"AIM 2","13.6","AFI AIM/2:IMPLEMENTATION OF AERONAUTICAL INFORMATION EXCHANGE SYSTEMS (AIXM)",{"$f":"UPPER(\"Organise AIXM seminar\")","v":"ORGANISE AIXM SEMINAR"},"Organise AIXM seminar ",2016,1,2016,2022,"6","Ongoing",0]
[null,"AIM 2","13.7","AFI AIM/2:IMPLEMENTATION OF AERONAUTICAL INFORMATION EXCHANGE SYSTEMS (AIXM)",{"$f":"UPPER(\"Analyse Eurocontrol AIXM specifications\")","v":"ANALYSE EUROCONTROL AIXM SPECIFICATIONS"},"Analyse Eurocontrol AIXM specifications ",2018,1,2018,2022,"4","Ongoing",0]
[null,"AIM 2","13.8","AFI AIM/2:IMPLEMENTATION OF AERONAUTICAL INFORMATION EXCHANGE SYSTEMS (AIXM)",{"$f":"UPPER(\"Develop guidance material\")","v":"DEVELOP GUIDANCE MATERIAL"},"Develop guidance material ",2018,1,2018,2022,"4","Ongoing",0]
[null,"AIM 2","13.9","AFI AIM/2:IMPLEMENTATION OF AERONAUTICAL INFORMATION EXCHANGE SYSTEMS (AIXM)",{"$f":"UPPER(\"Develop AIXM action plan for the States\")","v":"DEVELOP AIXM ACTION PLAN FOR THE STATES"},"Develop AIXM action plan for the States ",2018,1,2018,2022,"4","Ongoing",0]
[null,"AIM 3","14.1.1","IMPLEMENTATION OF THE PROVISION OF ELECTRONIC TERRAIN AND OBSTACLE DATA (e-TOD) (AFI Region)   ","PROJECT PLANNING DOCUMENTATION","Project team coordinators and experts appointment finalisation",2018,1,2018,2019,"1",2020,0]
[null,"AIM 3","14.1.2","IMPLEMENTATION OF THE PROVISION OF ELECTRONIC TERRAIN AND OBSTACLE DATA (e-TOD) (AFI Region)   ","PROJECT PLANNING DOCUMENTATION","Project Team Organization",2018,1,2018,2019,"1",2020,0]
[null,"AIM 3","14.1.3","IMPLEMENTATION OF THE PROVISION OF ELECTRONIC TERRAIN AND OBSTACLE DATA (e-TOD) (AFI Region)   ","PROJECT PLANNING DOCUMENTATION","Project ToR and Description ",2018,1,2018,2019,"1",2020,0]
[null,"AIM 3","14.1.4","IMPLEMENTATION OF THE PROVISION OF ELECTRONIC TERRAIN AND OBSTACLE DATA (e-TOD) (AFI Region)   ","PROJECT PLANNING DOCUMENTATION","Project link finalisation ",2018,1,2018,2019,"1",2020,0]
[null,"AIM 3","14.1.5","IMPLEMENTATION OF THE PROVISION OF ELECTRONIC TERRAIN AND OBSTACLE DATA (e-TOD) (AFI Region)   ","PROJECT PLANNING DOCUMENTATION","Project Questionnaire ",2018,1,2018,2019,"1",2020,0]
[null,"AIM 3","14.1.6","IMPLEMENTATION OF THE PROVISION OF ELECTRONIC TERRAIN AND OBSTACLE DATA (e-TOD) (AFI Region)   ","PROJECT PLANNING DOCUMENTATION","Project Costing",2020,1,2021,2020,"-1","Ongoing ",0]